Workbook

Sheet 整体情况
A1: Practice Characterization
A2: Process Areas | B2: Specific Practices | U2: Generic Practices
B3: SP1.1 | C3: SP1.2 | D3: SP1.3 | E3: SP1.4 | F3: SP1.5 | G3: SP1.6 | H3: SP1.7 | I3: SP2.1 | J3: SP2.2 | K3: SP2.3 | L3: SP2.4 | M3: SP2.5 | N3: SP2.6 | O3: SP2.7 | P3: SP3.1 | Q3: SP3.2 | R3: SP3.3 | S3: SP3.4 | T3: SP3.5 | U3: GP2.1 | V3: GP2.2 | W3: GP2.3 | X3: GP2.4 | Y3: GP2.5 | Z3: GP2.6 | AA3: GP2.7 | AB3: GP2.8 | AC3: GP2.9 | AD3: GP2.10 | AE3: GP3.1 | AF3: GP3.2
A4: REQM | B4: =IF(AVERAGE('P1'!B4,'P2'!B4)=0,"NI",IF(AVERAGE('P1'!B4,'P2'!B4)=1,"FI","PI")) -> FI | C4: =IF(AVERAGE('P1'!C4,'P2'!C4)=0,"NI",IF(AVERAGE('P1'!C4,'P2'!C4)=1,"FI","PI")) -> PI | D4: =IF(AVERAGE('P1'!D4,'P2'!D4)=0,"NI",IF(AVERAGE('P1'!D4,'P2'!D4)=1,"FI","PI")) -> PI | E4: =IF(AVERAGE('P1'!E4,'P2'!E4)=0,"NI",IF(AVERAGE('P1'!E4,'P2'!E4)=1,"FI","PI")) -> PI | F4: =IF(AVERAGE('P1'!F4,'P2'!F4)=0,"NI",IF(AVERAGE('P1'!F4,'P2'!F4)=1,"FI","PI")) -> PI | G4: --- | H4: --- | I4: --- | J4: --- | K4: --- | L4: --- | M4: --- | N4: --- | O4: --- | P4: --- | Q4: --- | R4: --- | S4: --- | T4: --- | U4: =IF(AVERAGE('P1'!U4,'P2'!U4)=0,"NI",IF(AVERAGE('P1'!U4,'P2'!U4)=1,"FI","PI")) -> FI | V4: =IF(AVERAGE('P1'!V4,'P2'!V4)=0,"NI",IF(AVERAGE('P1'!V4,'P2'!V4)=1,"FI","PI")) -> PI | W4: =IF(AVERAGE('P1'!W4,'P2'!W4)=0,"NI",IF(AVERAGE('P1'!W4,'P2'!W4)=1,"FI","PI")) -> PI | X4: =IF(AVERAGE('P1'!X4,'P2'!X4)=0,"NI",IF(AVERAGE('P1'!X4,'P2'!X4)=1,"FI","PI")) -> PI | Y4: =IF(AVERAGE('P1'!Y4,'P2'!Y4)=0,"NI",IF(AVERAGE('P1'!Y4,'P2'!Y4)=1,"FI","PI")) -> FI | Z4: =IF(AVERAGE('P1'!Z4,'P2'!Z4)=0,"NI",IF(AVERAGE('P1'!Z4,'P2'!Z4)=1,"FI","PI")) -> FI | AA4: =IF(AVERAGE('P1'!AA4,'P2'!AA4)=0,"NI",IF(AVERAGE('P1'!AA4,'P2'!AA4)=1,"FI","PI")) -> PI | AB4: =IF(AVERAGE('P1'!AB4,'P2'!AB4)=0,"NI",IF(AVERAGE('P1'!AB4,'P2'!AB4)=1,"FI","PI")) -> PI | AC4: =IF(AVERAGE('P1'!AC4,'P2'!AC4)=0,"NI",IF(AVERAGE('P1'!AC4,'P2'!AC4)=1,"FI","PI")) -> FI | AD4: =IF(AVERAGE('P1'!AD4,'P2'!AD4)=0,"NI",IF(AVERAGE('P1'!AD4,'P2'!AD4)=1,"FI","PI")) -> PI | AE4: =IF(AVERAGE('P1'!AE4,'P2'!AE4)=0,"NI",IF(AVERAGE('P1'!AE4,'P2'!AE4)=1,"FI","PI")) -> FI | AF4: =IF(AVERAGE('P1'!AF4,'P2'!AF4)=0,"NI",IF(AVERAGE('P1'!AF4,'P2'!AF4)=1,"FI","PI")) -> FI
A5: PP | B5: =IF(AVERAGE('P1'!B5,'P2'!B5)=0,"NI",IF(AVERAGE('P1'!B5,'P2'!B5)=1,"FI","PI")) -> PI | C5: =IF(AVERAGE('P1'!C5,'P2'!C5)=0,"NI",IF(AVERAGE('P1'!C5,'P2'!C5)=1,"FI","PI")) -> PI | D5: =IF(AVERAGE('P1'!D5,'P2'!D5)=0,"NI",IF(AVERAGE('P1'!D5,'P2'!D5)=1,"FI","PI")) -> FI | E5: =IF(AVERAGE('P1'!E5,'P2'!E5)=0,"NI",IF(AVERAGE('P1'!E5,'P2'!E5)=1,"FI","PI")) -> PI | F5: --- | G5: --- | H5: --- | I5: =IF(AVERAGE('P1'!I5,'P2'!I5)=0,"NI",IF(AVERAGE('P1'!I5,'P2'!I5)=1,"FI","PI")) -> PI | J5: =IF(AVERAGE('P1'!J5,'P2'!J5)=0,"NI",IF(AVERAGE('P1'!J5,'P2'!J5)=1,"FI","PI")) -> FI | K5: =IF(AVERAGE('P1'!K5,'P2'!K5)=0,"NI",IF(AVERAGE('P1'!K5,'P2'!K5)=1,"FI","PI")) -> FI | L5: =IF(AVERAGE('P1'!L5,'P2'!L5)=0,"NI",IF(AVERAGE('P1'!L5,'P2'!L5)=1,"FI","PI")) -> FI | M5: =IF(AVERAGE('P1'!M5,'P2'!M5)=0,"NI",IF(AVERAGE('P1'!M5,'P2'!M5)=1,"FI","PI")) -> FI | N5: =IF(AVERAGE('P1'!N5,'P2'!N5)=0,"NI",IF(AVERAGE('P1'!N5,'P2'!N5)=1,"FI","PI")) -> PI | O5: =IF(AVERAGE('P1'!O5,'P2'!O5)=0,"NI",IF(AVERAGE('P1'!O5,'P2'!O5)=1,"FI","PI")) -> FI | P5: =IF(AVERAGE('P1'!P5,'P2'!P5)=0,"NI",IF(AVERAGE('P1'!P5,'P2'!P5)=1,"FI","PI")) -> PI | Q5: =IF(AVERAGE('P1'!Q5,'P2'!Q5)=0,"NI",IF(AVERAGE('P1'!Q5,'P2'!Q5)=1,"FI","PI")) -> FI | R5: =IF(AVERAGE('P1'!R5,'P2'!R5)=0,"NI",IF(AVERAGE('P1'!R5,'P2'!R5)=1,"FI","PI")) -> PI | S5: --- | T5: --- | U5: =IF(AVERAGE('P1'!U5,'P2'!U5)=0,"NI",IF(AVERAGE('P1'!U5,'P2'!U5)=1,"FI","PI")) -> FI | V5: =IF(AVERAGE('P1'!V5,'P2'!V5)=0,"NI",IF(AVERAGE('P1'!V5,'P2'!V5)=1,"FI","PI")) -> FI | W5: =IF(AVERAGE('P1'!W5,'P2'!W5)=0,"NI",IF(AVERAGE('P1'!W5,'P2'!W5)=1,"FI","PI")) -> FI | X5: =IF(AVERAGE('P1'!X5,'P2'!X5)=0,"NI",IF(AVERAGE('P1'!X5,'P2'!X5)=1,"FI","PI")) -> FI | Y5: =IF(AVERAGE('P1'!Y5,'P2'!Y5)=0,"NI",IF(AVERAGE('P1'!Y5,'P2'!Y5)=1,"FI","PI")) -> FI | Z5: =IF(AVERAGE('P1'!Z5,'P2'!Z5)=0,"NI",IF(AVERAGE('P1'!Z5,'P2'!Z5)=1,"FI","PI")) -> FI | AA5: =IF(AVERAGE('P1'!AA5,'P2'!AA5)=0,"NI",IF(AVERAGE('P1'!AA5,'P2'!AA5)=1,"FI","PI")) -> PI | AB5: =IF(AVERAGE('P1'!AB5,'P2'!AB5)=0,"NI",IF(AVERAGE('P1'!AB5,'P2'!AB5)=1,"FI","PI")) -> PI | AC5: =IF(AVERAGE('P1'!AC5,'P2'!AC5)=0,"NI",IF(AVERAGE('P1'!AC5,'P2'!AC5)=1,"FI","PI")) -> FI | AD5: =IF(AVERAGE('P1'!AD5,'P2'!AD5)=0,"NI",IF(AVERAGE('P1'!AD5,'P2'!AD5)=1,"FI","PI")) -> PI | AE5: =IF(AVERAGE('P1'!AE5,'P2'!AE5)=0,"NI",IF(AVERAGE('P1'!AE5,'P2'!AE5)=1,"FI","PI")) -> FI | AF5: =IF(AVERAGE('P1'!AF5,'P2'!AF5)=0,"NI",IF(AVERAGE('P1'!AF5,'P2'!AF5)=1,"FI","PI")) -> FI
A6: PMC | B6: =IF(AVERAGE('P1'!B6,'P2'!B6,'P3'!B6)=0,"NI",IF(AVERAGE('P1'!B6,'P2'!B6,'P3'!B6)=1,"FI","PI")) -> PI | C6: =IF(AVERAGE('P1'!C6,'P2'!C6,'P3'!C6)=0,"NI",IF(AVERAGE('P1'!C6,'P2'!C6,'P3'!C6)=1,"FI","PI")) -> PI | D6: =IF(AVERAGE('P1'!D6,'P2'!D6,'P3'!D6)=0,"NI",IF(AVERAGE('P1'!D6,'P2'!D6,'P3'!D6)=1,"FI","PI")) -> FI | E6: =IF(AVERAGE('P1'!E6,'P2'!E6,'P3'!E6)=0,"NI",IF(AVERAGE('P1'!E6,'P2'!E6,'P3'!E6)=1,"FI","PI")) -> PI | F6: =IF(AVERAGE('P1'!F6,'P2'!F6,'P3'!F6)=0,"NI",IF(AVERAGE('P1'!F6,'P2'!F6,'P3'!F6)=1,"FI","PI")) -> PI | G6: =IF(AVERAGE('P1'!G6,'P2'!G6,'P3'!G6)=0,"NI",IF(AVERAGE('P1'!G6,'P2'!G6,'P3'!G6)=1,"FI","PI")) -> PI | H6: =IF(AVERAGE('P1'!H6,'P2'!H6,'P3'!H6)=0,"NI",IF(AVERAGE('P1'!H6,'P2'!H6,'P3'!H6)=1,"FI","PI")) -> PI | I6: =IF(AVERAGE('P1'!I6,'P2'!I6,'P3'!I6)=0,"NI",IF(AVERAGE('P1'!I6,'P2'!I6,'P3'!I6)=1,"FI","PI")) -> PI | J6: =IF(AVERAGE('P1'!J6,'P2'!J6,'P3'!J6)=0,"NI",IF(AVERAGE('P1'!J6,'P2'!J6,'P3'!J6)=1,"FI","PI")) -> PI | K6: =IF(AVERAGE('P1'!K6,'P2'!K6,'P3'!K6)=0,"NI",IF(AVERAGE('P1'!K6,'P2'!K6,'P3'!K6)=1,"FI","PI")) -> PI | L6: --- | M6: --- | N6: --- | O6: --- | P6: --- | Q6: --- | R6: --- | S6: --- | T6: --- | U6: =IF(AVERAGE('P1'!U6,'P2'!U6)=0,"NI",IF(AVERAGE('P1'!U6,'P2'!U6)=1,"FI","PI")) -> FI | V6: =IF(AVERAGE('P1'!V6,'P2'!V6)=0,"NI",IF(AVERAGE('P1'!V6,'P2'!V6)=1,"FI","PI")) -> PI | W6: =IF(AVERAGE('P1'!W6,'P2'!W6)=0,"NI",IF(AVERAGE('P1'!W6,'P2'!W6)=1,"FI","PI")) -> PI | X6: =IF(AVERAGE('P1'!X6,'P2'!X6)=0,"NI",IF(AVERAGE('P1'!X6,'P2'!X6)=1,"FI","PI")) -> PI | Y6: =IF(AVERAGE('P1'!Y6,'P2'!Y6)=0,"NI",IF(AVERAGE('P1'!Y6,'P2'!Y6)=1,"FI","PI")) -> FI | Z6: =IF(AVERAGE('P1'!Z6,'P2'!Z6)=0,"NI",IF(AVERAGE('P1'!Z6,'P2'!Z6)=1,"FI","PI")) -> PI | AA6: =IF(AVERAGE('P1'!AA6,'P2'!AA6)=0,"NI",IF(AVERAGE('P1'!AA6,'P2'!AA6)=1,"FI","PI")) -> PI | AB6: =IF(AVERAGE('P1'!AB6,'P2'!AB6)=0,"NI",IF(AVERAGE('P1'!AB6,'P2'!AB6)=1,"FI","PI")) -> PI | AC6: =IF(AVERAGE('P1'!AC6,'P2'!AC6)=0,"NI",IF(AVERAGE('P1'!AC6,'P2'!AC6)=1,"FI","PI")) -> FI | AD6: =IF(AVERAGE('P1'!AD6,'P2'!AD6)=0,"NI",IF(AVERAGE('P1'!AD6,'P2'!AD6)=1,"FI","PI")) -> PI | AE6: =IF(AVERAGE('P1'!AE6,'P2'!AE6)=0,"NI",IF(AVERAGE('P1'!AE6,'P2'!AE6)=1,"FI","PI")) -> FI | AF6: =IF(AVERAGE('P1'!AF6,'P2'!AF6)=0,"NI",IF(AVERAGE('P1'!AF6,'P2'!AF6)=1,"FI","PI")) -> FI
A7: SAM | B7: / | C7: / | D7: / | E7: --- | F7: --- | G7: --- | H7: --- | I7: / | J7: / | K7: / | L7: --- | M7: --- | N7: --- | O7: --- | P7: --- | Q7: --- | R7: --- | S7: --- | T7: --- | U7: / | V7: / | W7: / | X7: / | Y7: / | Z7: / | AA7: / | AB7: / | AC7: / | AD7: / | AE7: / | AF7: /
A8: MA | B8: =IF(AVERAGE('P1'!B8,'P2'!B8)=0,"NI",IF(AVERAGE('P1'!B8,'P2'!B8)=1,"FI","PI")) -> FI | C8: =IF(AVERAGE('P1'!C8,'P2'!C8)=0,"NI",IF(AVERAGE('P1'!C8,'P2'!C8)=1,"FI","PI")) -> FI | D8: =IF(AVERAGE('P1'!D8,'P2'!D8)=0,"NI",IF(AVERAGE('P1'!D8,'P2'!D8)=1,"FI","PI")) -> FI | E8: =IF(AVERAGE('P1'!E8,'P2'!E8)=0,"NI",IF(AVERAGE('P1'!E8,'P2'!E8)=1,"FI","PI")) -> FI | F8: --- | G8: --- | H8: --- | I8: =IF(AVERAGE('P1'!I8,'P2'!I8)=0,"NI",IF(AVERAGE('P1'!I8,'P2'!I8)=1,"FI","PI")) -> PI | J8: =IF(AVERAGE('P1'!J8,'P2'!J8)=0,"NI",IF(AVERAGE('P1'!J8,'P2'!J8)=1,"FI","PI")) -> PI | K8: =IF(AVERAGE('P1'!K8,'P2'!K8)=0,"NI",IF(AVERAGE('P1'!K8,'P2'!K8)=1,"FI","PI")) -> PI | L8: =IF(AVERAGE('P1'!L8,'P2'!L8)=0,"NI",IF(AVERAGE('P1'!L8,'P2'!L8)=1,"FI","PI")) -> PI | M8: --- | N8: --- | O8: --- | P8: --- | Q8: --- | R8: --- | S8: --- | T8: --- | U8: =IF(AVERAGE('P1'!U8,'P2'!U8)=0,"NI",IF(AVERAGE('P1'!U8,'P2'!U8)=1,"FI","PI")) -> FI | V8: =IF(AVERAGE('P1'!V8,'P2'!V8)=0,"NI",IF(AVERAGE('P1'!V8,'P2'!V8)=1,"FI","PI")) -> PI | W8: =IF(AVERAGE('P1'!W8,'P2'!W8)=0,"NI",IF(AVERAGE('P1'!W8,'P2'!W8)=1,"FI","PI")) -> PI | X8: =IF(AVERAGE('P1'!X8,'P2'!X8)=0,"NI",IF(AVERAGE('P1'!X8,'P2'!X8)=1,"FI","PI")) -> PI | Y8: =IF(AVERAGE('P1'!Y8,'P2'!Y8)=0,"NI",IF(AVERAGE('P1'!Y8,'P2'!Y8)=1,"FI","PI")) -> FI | Z8: =IF(AVERAGE('P1'!Z8,'P2'!Z8)=0,"NI",IF(AVERAGE('P1'!Z8,'P2'!Z8)=1,"FI","PI")) -> PI | AA8: =IF(AVERAGE('P1'!AA8,'P2'!AA8)=0,"NI",IF(AVERAGE('P1'!AA8,'P2'!AA8)=1,"FI","PI")) -> PI | AB8: =IF(AVERAGE('P1'!AB8,'P2'!AB8)=0,"NI",IF(AVERAGE('P1'!AB8,'P2'!AB8)=1,"FI","PI")) -> PI | AC8: =IF(AVERAGE('P1'!AC8,'P2'!AC8)=0,"NI",IF(AVERAGE('P1'!AC8,'P2'!AC8)=1,"FI","PI")) -> FI | AD8: =IF(AVERAGE('P1'!AD8,'P2'!AD8)=0,"NI",IF(AVERAGE('P1'!AD8,'P2'!AD8)=1,"FI","PI")) -> PI | AE8: =IF(AVERAGE('P1'!AE8,'P2'!AE8)=0,"NI",IF(AVERAGE('P1'!AE8,'P2'!AE8)=1,"FI","PI")) -> FI | AF8: =IF(AVERAGE('P1'!AF8,'P2'!AF8)=0,"NI",IF(AVERAGE('P1'!AF8,'P2'!AF8)=1,"FI","PI")) -> FI
A9: PPQA | B9: =IF(AVERAGE('P1'!B9,'P2'!B9)=0,"NI",IF(AVERAGE('P1'!B9,'P2'!B9)=1,"FI","PI")) -> FI | C9: =IF(AVERAGE('P1'!C9,'P2'!C9)=0,"NI",IF(AVERAGE('P1'!C9,'P2'!C9)=1,"FI","PI")) -> FI | D9: --- | E9: --- | F9: --- | G9: --- | H9: --- | I9: =IF(AVERAGE('P1'!I9,'P2'!I9)=0,"NI",IF(AVERAGE('P1'!I9,'P2'!I9)=1,"FI","PI")) -> FI | J9: =IF(AVERAGE('P1'!J9,'P2'!J9)=0,"NI",IF(AVERAGE('P1'!J9,'P2'!J9)=1,"FI","PI")) -> FI | K9: --- | L9: --- | M9: --- | N9: --- | O9: --- | P9: --- | Q9: --- | R9: --- | S9: --- | T9: --- | U9: =IF(AVERAGE('P1'!U9,'P2'!U9)=0,"NI",IF(AVERAGE('P1'!U9,'P2'!U9)=1,"FI","PI")) -> FI | V9: =IF(AVERAGE('P1'!V9,'P2'!V9)=0,"NI",IF(AVERAGE('P1'!V9,'P2'!V9)=1,"FI","PI")) -> FI | W9: =IF(AVERAGE('P1'!W9,'P2'!W9)=0,"NI",IF(AVERAGE('P1'!W9,'P2'!W9)=1,"FI","PI")) -> FI | X9: =IF(AVERAGE('P1'!X9,'P2'!X9)=0,"NI",IF(AVERAGE('P1'!X9,'P2'!X9)=1,"FI","PI")) -> FI | Y9: =IF(AVERAGE('P1'!Y9,'P2'!Y9)=0,"NI",IF(AVERAGE('P1'!Y9,'P2'!Y9)=1,"FI","PI")) -> FI | Z9: =IF(AVERAGE('P1'!Z9,'P2'!Z9)=0,"NI",IF(AVERAGE('P1'!Z9,'P2'!Z9)=1,"FI","PI")) -> FI | AA9: =IF(AVERAGE('P1'!AA9,'P2'!AA9)=0,"NI",IF(AVERAGE('P1'!AA9,'P2'!AA9)=1,"FI","PI")) -> FI | AB9: =IF(AVERAGE('P1'!AB9,'P2'!AB9)=0,"NI",IF(AVERAGE('P1'!AB9,'P2'!AB9)=1,"FI","PI")) -> FI | AC9: =IF(AVERAGE('P1'!AC9,'P2'!AC9)=0,"NI",IF(AVERAGE('P1'!AC9,'P2'!AC9)=1,"FI","PI")) -> FI | AD9: =IF(AVERAGE('P1'!AD9,'P2'!AD9)=0,"NI",IF(AVERAGE('P1'!AD9,'P2'!AD9)=1,"FI","PI")) -> PI | AE9: =IF(AVERAGE('P1'!AE9,'P2'!AE9)=0,"NI",IF(AVERAGE('P1'!AE9,'P2'!AE9)=1,"FI","PI")) -> FI | AF9: =IF(AVERAGE('P1'!AF9,'P2'!AF9)=0,"NI",IF(AVERAGE('P1'!AF9,'P2'!AF9)=1,"FI","PI")) -> FI
A10: CM | B10: =IF(AVERAGE('P1'!B10,'P2'!B10)=0,"NI",IF(AVERAGE('P1'!B10,'P2'!B10)=1,"FI","PI")) -> FI | C10: =IF(AVERAGE('P1'!C10,'P2'!C10)=0,"NI",IF(AVERAGE('P1'!C10,'P2'!C10)=1,"FI","PI")) -> FI | D10: =IF(AVERAGE('P1'!D10,'P2'!D10)=0,"NI",IF(AVERAGE('P1'!D10,'P2'!D10)=1,"FI","PI")) -> PI | E10: --- | F10: --- | G10: --- | H10: --- | I10: =IF(AVERAGE('P1'!I10,'P2'!I10)=0,"NI",IF(AVERAGE('P1'!I10,'P2'!I10)=1,"FI","PI")) -> FI | J10: =IF(AVERAGE('P1'!J10,'P2'!J10)=0,"NI",IF(AVERAGE('P1'!J10,'P2'!J10)=1,"FI","PI")) -> PI | K10: --- | L10: --- | M10: --- | N10: --- | O10: --- | P10: =IF(AVERAGE('P1'!P10,'P2'!P10)=0,"NI",IF(AVERAGE('P1'!P10,'P2'!P10)=1,"FI","PI")) -> PI | Q10: =IF(AVERAGE('P1'!Q10,'P2'!Q10)=0,"NI",IF(AVERAGE('P1'!Q10,'P2'!Q10)=1,"FI","PI")) -> PI | R10: --- | S10: --- | T10: --- | U10: =IF(AVERAGE('P1'!U10,'P2'!U10)=0,"NI",IF(AVERAGE('P1'!U10,'P2'!U10)=1,"FI","PI")) -> FI | V10: =IF(AVERAGE('P1'!V10,'P2'!V10)=0,"NI",IF(AVERAGE('P1'!V10,'P2'!V10)=1,"FI","PI")) -> PI | W10: =IF(AVERAGE('P1'!W10,'P2'!W10)=0,"NI",IF(AVERAGE('P1'!W10,'P2'!W10)=1,"FI","PI")) -> PI | X10: =IF(AVERAGE('P1'!X10,'P2'!X10)=0,"NI",IF(AVERAGE('P1'!X10,'P2'!X10)=1,"FI","PI")) -> PI | Y10: =IF(AVERAGE('P1'!Y10,'P2'!Y10)=0,"NI",IF(AVERAGE('P1'!Y10,'P2'!Y10)=1,"FI","PI")) -> FI | Z10: =IF(AVERAGE('P1'!Z10,'P2'!Z10)=0,"NI",IF(AVERAGE('P1'!Z10,'P2'!Z10)=1,"FI","PI")) -> PI | AA10: =IF(AVERAGE('P1'!AA10,'P2'!AA10)=0,"NI",IF(AVERAGE('P1'!AA10,'P2'!AA10)=1,"FI","PI")) -> PI | AB10: =IF(AVERAGE('P1'!AB10,'P2'!AB10)=0,"NI",IF(AVERAGE('P1'!AB10,'P2'!AB10)=1,"FI","PI")) -> PI | AC10: =IF(AVERAGE('P1'!AC10,'P2'!AC10)=0,"NI",IF(AVERAGE('P1'!AC10,'P2'!AC10)=1,"FI","PI")) -> FI | AD10: =IF(AVERAGE('P1'!AD10,'P2'!AD10)=0,"NI",IF(AVERAGE('P1'!AD10,'P2'!AD10)=1,"FI","PI")) -> PI | AE10: =IF(AVERAGE('P1'!AE10,'P2'!AE10)=0,"NI",IF(AVERAGE('P1'!AE10,'P2'!AE10)=1,"FI","PI")) -> FI | AF10: =IF(AVERAGE('P1'!AF10,'P2'!AF10)=0,"NI",IF(AVERAGE('P1'!AF10,'P2'!AF10)=1,"FI","PI")) -> FI
A11: RD | B11: =IF(AVERAGE('P1'!B11,'P2'!B11)=0,"NI",IF(AVERAGE('P1'!B11,'P2'!B11)=1,"FI","PI")) -> FI | C11: =IF(AVERAGE('P1'!C11,'P2'!C11)=0,"NI",IF(AVERAGE('P1'!C11,'P2'!C11)=1,"FI","PI")) -> FI | D11: --- | E11: --- | F11: --- | G11: --- | H11: --- | I11: =IF(AVERAGE('P1'!I11,'P2'!I11)=0,"NI",IF(AVERAGE('P1'!I11,'P2'!I11)=1,"FI","PI")) -> FI | J11: =IF(AVERAGE('P1'!J11,'P2'!J11)=0,"NI",IF(AVERAGE('P1'!J11,'P2'!J11)=1,"FI","PI")) -> FI | K11: =IF(AVERAGE('P1'!K11,'P2'!K11)=0,"NI",IF(AVERAGE('P1'!K11,'P2'!K11)=1,"FI","PI")) -> FI | L11: --- | M11: --- | N11: --- | O11: --- | P11: =IF(AVERAGE('P1'!P11,'P2'!P11)=0,"NI",IF(AVERAGE('P1'!P11,'P2'!P11)=1,"FI","PI")) -> FI | Q11: =IF(AVERAGE('P1'!Q11,'P2'!Q11)=0,"NI",IF(AVERAGE('P1'!Q11,'P2'!Q11)=1,"FI","PI")) -> FI | R11: =IF(AVERAGE('P1'!R11,'P2'!R11)=0,"NI",IF(AVERAGE('P1'!R11,'P2'!R11)=1,"FI","PI")) -> PI | S11: =IF(AVERAGE('P1'!S11,'P2'!S11)=0,"NI",IF(AVERAGE('P1'!S11,'P2'!S11)=1,"FI","PI")) -> PI | T11: =IF(AVERAGE('P1'!T11,'P2'!T11)=0,"NI",IF(AVERAGE('P1'!T11,'P2'!T11)=1,"FI","PI")) -> PI | U11: =IF(AVERAGE('P1'!U11,'P2'!U11)=0,"NI",IF(AVERAGE('P1'!U11,'P2'!U11)=1,"FI","PI")) -> FI | V11: =IF(AVERAGE('P1'!V11,'P2'!V11)=0,"NI",IF(AVERAGE('P1'!V11,'P2'!V11)=1,"FI","PI")) -> PI | W11: =IF(AVERAGE('P1'!W11,'P2'!W11)=0,"NI",IF(AVERAGE('P1'!W11,'P2'!W11)=1,"FI","PI")) -> PI | X11: =IF(AVERAGE('P1'!X11,'P2'!X11)=0,"NI",IF(AVERAGE('P1'!X11,'P2'!X11)=1,"FI","PI")) -> PI | Y11: =IF(AVERAGE('P1'!Y11,'P2'!Y11)=0,"NI",IF(AVERAGE('P1'!Y11,'P2'!Y11)=1,"FI","PI")) -> FI | Z11: =IF(AVERAGE('P1'!Z11,'P2'!Z11)=0,"NI",IF(AVERAGE('P1'!Z11,'P2'!Z11)=1,"FI","PI")) -> PI | AA11: =IF(AVERAGE('P1'!AA11,'P2'!AA11)=0,"NI",IF(AVERAGE('P1'!AA11,'P2'!AA11)=1,"FI","PI")) -> PI | AB11: =IF(AVERAGE('P1'!AB11,'P2'!AB11)=0,"NI",IF(AVERAGE('P1'!AB11,'P2'!AB11)=1,"FI","PI")) -> PI | AC11: =IF(AVERAGE('P1'!AC11,'P2'!AC11)=0,"NI",IF(AVERAGE('P1'!AC11,'P2'!AC11)=1,"FI","PI")) -> FI | AD11: =IF(AVERAGE('P1'!AD11,'P2'!AD11)=0,"NI",IF(AVERAGE('P1'!AD11,'P2'!AD11)=1,"FI","PI")) -> PI | AE11: =IF(AVERAGE('P1'!AE11,'P2'!AE11)=0,"NI",IF(AVERAGE('P1'!AE11,'P2'!AE11)=1,"FI","PI")) -> FI | AF11: =IF(AVERAGE('P1'!AF11,'P2'!AF11)=0,"NI",IF(AVERAGE('P1'!AF11,'P2'!AF11)=1,"FI","PI")) -> FI
A12: TS | B12: =IF(AVERAGE('P1'!B12,'P2'!B12)=0,"NI",IF(AVERAGE('P1'!B12,'P2'!B12)=1,"FI","PI")) -> PI | C12: =IF(AVERAGE('P1'!C12,'P2'!C12)=0,"NI",IF(AVERAGE('P1'!C12,'P2'!C12)=1,"FI","PI")) -> PI | D12: --- | E12: --- | F12: --- | G12: --- | H12: --- | I12: =IF(AVERAGE('P1'!I12,'P2'!I12)=0,"NI",IF(AVERAGE('P1'!I12,'P2'!I12)=1,"FI","PI")) -> FI | J12: =IF(AVERAGE('P1'!J12,'P2'!J12)=0,"NI",IF(AVERAGE('P1'!J12,'P2'!J12)=1,"FI","PI")) -> FI | K12: =IF(AVERAGE('P1'!K12,'P2'!K12)=0,"NI",IF(AVERAGE('P1'!K12,'P2'!K12)=1,"FI","PI")) -> FI | L12: =IF(AVERAGE('P1'!L12,'P2'!L12)=0,"NI",IF(AVERAGE('P1'!L12,'P2'!L12)=1,"FI","PI")) -> FI | M12: --- | N12: --- | O12: --- | P12: =IF(AVERAGE('P1'!P12,'P2'!P12)=0,"NI",IF(AVERAGE('P1'!P12,'P2'!P12)=1,"FI","PI")) -> FI | Q12: =IF(AVERAGE('P1'!Q12,'P2'!Q12)=0,"NI",IF(AVERAGE('P1'!Q12,'P2'!Q12)=1,"FI","PI")) -> FI | R12: --- | S12: --- | T12: --- | U12: =IF(AVERAGE('P1'!U12,'P2'!U12)=0,"NI",IF(AVERAGE('P1'!U12,'P2'!U12)=1,"FI","PI")) -> FI | V12: =IF(AVERAGE('P1'!V12,'P2'!V12)=0,"NI",IF(AVERAGE('P1'!V12,'P2'!V12)=1,"FI","PI")) -> PI | W12: =IF(AVERAGE('P1'!W12,'P2'!W12)=0,"NI",IF(AVERAGE('P1'!W12,'P2'!W12)=1,"FI","PI")) -> PI | X12: =IF(AVERAGE('P1'!X12,'P2'!X12)=0,"NI",IF(AVERAGE('P1'!X12,'P2'!X12)=1,"FI","PI")) -> PI | Y12: =IF(AVERAGE('P1'!Y12,'P2'!Y12)=0,"NI",IF(AVERAGE('P1'!Y12,'P2'!Y12)=1,"FI","PI")) -> FI | Z12: =IF(AVERAGE('P1'!Z12,'P2'!Z12)=0,"NI",IF(AVERAGE('P1'!Z12,'P2'!Z12)=1,"FI","PI")) -> PI | AA12: =IF(AVERAGE('P1'!AA12,'P2'!AA12)=0,"NI",IF(AVERAGE('P1'!AA12,'P2'!AA12)=1,"FI","PI")) -> PI | AB12: =IF(AVERAGE('P1'!AB12,'P2'!AB12)=0,"NI",IF(AVERAGE('P1'!AB12,'P2'!AB12)=1,"FI","PI")) -> PI | AC12: =IF(AVERAGE('P1'!AC12,'P2'!AC12)=0,"NI",IF(AVERAGE('P1'!AC12,'P2'!AC12)=1,"FI","PI")) -> FI | AD12: =IF(AVERAGE('P1'!AD12,'P2'!AD12)=0,"NI",IF(AVERAGE('P1'!AD12,'P2'!AD12)=1,"FI","PI")) -> PI | AE12: =IF(AVERAGE('P1'!AE12,'P2'!AE12)=0,"NI",IF(AVERAGE('P1'!AE12,'P2'!AE12)=1,"FI","PI")) -> FI | AF12: =IF(AVERAGE('P1'!AF12,'P2'!AF12)=0,"NI",IF(AVERAGE('P1'!AF12,'P2'!AF12)=1,"FI","PI")) -> FI
A13: PI | B13: =IF(AVERAGE('P1'!B13,'P2'!B13)=0,"NI",IF(AVERAGE('P1'!B13,'P2'!B13)=1,"FI","PI")) -> FI | C13: =IF(AVERAGE('P1'!C13,'P2'!C13)=0,"NI",IF(AVERAGE('P1'!C13,'P2'!C13)=1,"FI","PI")) -> FI | D13: =IF(AVERAGE('P1'!D13,'P2'!D13)=0,"NI",IF(AVERAGE('P1'!D13,'P2'!D13)=1,"FI","PI")) -> FI | E13: --- | F13: --- | G13: --- | H13: --- | I13: =IF(AVERAGE('P1'!I13,'P2'!I13)=0,"NI",IF(AVERAGE('P1'!I13,'P2'!I13)=1,"FI","PI")) -> PI | J13: =IF(AVERAGE('P1'!J13,'P2'!J13)=0,"NI",IF(AVERAGE('P1'!J13,'P2'!J13)=1,"FI","PI")) -> PI | K13: --- | L13: --- | M13: --- | N13: --- | O13: --- | P13: =IF(AVERAGE('P1'!P13,'P2'!P13)=0,"NI",IF(AVERAGE('P1'!P13,'P2'!P13)=1,"FI","PI")) -> PI | Q13: =IF(AVERAGE('P1'!Q13,'P2'!Q13)=0,"NI",IF(AVERAGE('P1'!Q13,'P2'!Q13)=1,"FI","PI")) -> PI | R13: =IF(AVERAGE('P1'!R13,'P2'!R13)=0,"NI",IF(AVERAGE('P1'!R13,'P2'!R13)=1,"FI","PI")) -> PI | S13: =IF(AVERAGE('P1'!S13,'P2'!S13)=0,"NI",IF(AVERAGE('P1'!S13,'P2'!S13)=1,"FI","PI")) -> FI | T13: --- | U13: =IF(AVERAGE('P1'!U13,'P2'!U13)=0,"NI",IF(AVERAGE('P1'!U13,'P2'!U13)=1,"FI","PI")) -> FI | V13: =IF(AVERAGE('P1'!V13,'P2'!V13)=0,"NI",IF(AVERAGE('P1'!V13,'P2'!V13)=1,"FI","PI")) -> PI | W13: =IF(AVERAGE('P1'!W13,'P2'!W13)=0,"NI",IF(AVERAGE('P1'!W13,'P2'!W13)=1,"FI","PI")) -> PI | X13: =IF(AVERAGE('P1'!X13,'P2'!X13)=0,"NI",IF(AVERAGE('P1'!X13,'P2'!X13)=1,"FI","PI")) -> PI | Y13: =IF(AVERAGE('P1'!Y13,'P2'!Y13)=0,"NI",IF(AVERAGE('P1'!Y13,'P2'!Y13)=1,"FI","PI")) -> FI | Z13: =IF(AVERAGE('P1'!Z13,'P2'!Z13)=0,"NI",IF(AVERAGE('P1'!Z13,'P2'!Z13)=1,"FI","PI")) -> PI | AA13: =IF(AVERAGE('P1'!AA13,'P2'!AA13)=0,"NI",IF(AVERAGE('P1'!AA13,'P2'!AA13)=1,"FI","PI")) -> PI | AB13: =IF(AVERAGE('P1'!AB13,'P2'!AB13)=0,"NI",IF(AVERAGE('P1'!AB13,'P2'!AB13)=1,"FI","PI")) -> PI | AC13: =IF(AVERAGE('P1'!AC13,'P2'!AC13)=0,"NI",IF(AVERAGE('P1'!AC13,'P2'!AC13)=1,"FI","PI")) -> FI | AD13: =IF(AVERAGE('P1'!AD13,'P2'!AD13)=0,"NI",IF(AVERAGE('P1'!AD13,'P2'!AD13)=1,"FI","PI")) -> PI | AE13: =IF(AVERAGE('P1'!AE13,'P2'!AE13)=0,"NI",IF(AVERAGE('P1'!AE13,'P2'!AE13)=1,"FI","PI")) -> FI | AF13: =IF(AVERAGE('P1'!AF13,'P2'!AF13)=0,"NI",IF(AVERAGE('P1'!AF13,'P2'!AF13)=1,"FI","PI")) -> FI
A14: VER | B14: =IF(AVERAGE('P1'!B14,'P2'!B14)=0,"NI",IF(AVERAGE('P1'!B14,'P2'!B14)=1,"FI","PI")) -> FI | C14: =IF(AVERAGE('P1'!C14,'P2'!C14)=0,"NI",IF(AVERAGE('P1'!C14,'P2'!C14)=1,"FI","PI")) -> FI | D14: =IF(AVERAGE('P1'!D14,'P2'!D14)=0,"NI",IF(AVERAGE('P1'!D14,'P2'!D14)=1,"FI","PI")) -> FI | E14: --- | F14: --- | G14: --- | H14: --- | I14: =IF(AVERAGE('P1'!I14,'P2'!I14)=0,"NI",IF(AVERAGE('P1'!I14,'P2'!I14)=1,"FI","PI")) -> PI | J14: =IF(AVERAGE('P1'!J14,'P2'!J14)=0,"NI",IF(AVERAGE('P1'!J14,'P2'!J14)=1,"FI","PI")) -> PI | K14: =IF(AVERAGE('P1'!K14,'P2'!K14)=0,"NI",IF(AVERAGE('P1'!K14,'P2'!K14)=1,"FI","PI")) -> PI | L14: --- | M14: --- | N14: --- | O14: --- | P14: =IF(AVERAGE('P1'!P14,'P2'!P14)=0,"NI",IF(AVERAGE('P1'!P14,'P2'!P14)=1,"FI","PI")) -> PI | Q14: =IF(AVERAGE('P1'!Q14,'P2'!Q14)=0,"NI",IF(AVERAGE('P1'!Q14,'P2'!Q14)=1,"FI","PI")) -> NI | R14: --- | S14: --- | T14: --- | U14: =IF(AVERAGE('P1'!U14,'P2'!U14)=0,"NI",IF(AVERAGE('P1'!U14,'P2'!U14)=1,"FI","PI")) -> FI | V14: =IF(AVERAGE('P1'!V14,'P2'!V14)=0,"NI",IF(AVERAGE('P1'!V14,'P2'!V14)=1,"FI","PI")) -> PI | W14: =IF(AVERAGE('P1'!W14,'P2'!W14)=0,"NI",IF(AVERAGE('P1'!W14,'P2'!W14)=1,"FI","PI")) -> PI | X14: =IF(AVERAGE('P1'!X14,'P2'!X14)=0,"NI",IF(AVERAGE('P1'!X14,'P2'!X14)=1,"FI","PI")) -> PI | Y14: =IF(AVERAGE('P1'!Y14,'P2'!Y14)=0,"NI",IF(AVERAGE('P1'!Y14,'P2'!Y14)=1,"FI","PI")) -> FI | Z14: =IF(AVERAGE('P1'!Z14,'P2'!Z14)=0,"NI",IF(AVERAGE('P1'!Z14,'P2'!Z14)=1,"FI","PI")) -> PI | AA14: =IF(AVERAGE('P1'!AA14,'P2'!AA14)=0,"NI",IF(AVERAGE('P1'!AA14,'P2'!AA14)=1,"FI","PI")) -> PI | AB14: =IF(AVERAGE('P1'!AB14,'P2'!AB14)=0,"NI",IF(AVERAGE('P1'!AB14,'P2'!AB14)=1,"FI","PI")) -> PI | AC14: =IF(AVERAGE('P1'!AC14,'P2'!AC14)=0,"NI",IF(AVERAGE('P1'!AC14,'P2'!AC14)=1,"FI","PI")) -> FI | AD14: =IF(AVERAGE('P1'!AD14,'P2'!AD14)=0,"NI",IF(AVERAGE('P1'!AD14,'P2'!AD14)=1,"FI","PI")) -> PI | AE14: =IF(AVERAGE('P1'!AE14,'P2'!AE14)=0,"NI",IF(AVERAGE('P1'!AE14,'P2'!AE14)=1,"FI","PI")) -> FI | AF14: =IF(AVERAGE('P1'!AF14,'P2'!AF14)=0,"NI",IF(AVERAGE('P1'!AF14,'P2'!AF14)=1,"FI","PI")) -> FI
A15: VAL | B15: =IF(AVERAGE('P1'!B15,'P2'!B15)=0,"NI",IF(AVERAGE('P1'!B15,'P2'!B15)=1,"FI","PI")) -> FI | C15: =IF(AVERAGE('P1'!C15,'P2'!C15)=0,"NI",IF(AVERAGE('P1'!C15,'P2'!C15)=1,"FI","PI")) -> FI | D15: =IF(AVERAGE('P1'!D15,'P2'!D15)=0,"NI",IF(AVERAGE('P1'!D15,'P2'!D15)=1,"FI","PI")) -> NI | E15: --- | F15: --- | G15: --- | H15: --- | I15: =IF(AVERAGE('P1'!I15,'P2'!I15)=0,"NI",IF(AVERAGE('P1'!I15,'P2'!I15)=1,"FI","PI")) -> NI | J15: =IF(AVERAGE('P1'!J15,'P2'!J15)=0,"NI",IF(AVERAGE('P1'!J15,'P2'!J15)=1,"FI","PI")) -> NI | K15: --- | L15: --- | M15: --- | N15: --- | O15: --- | P15: --- | Q15: --- | R15: --- | S15: --- | T15: --- | U15: =IF(AVERAGE('P1'!U15,'P2'!U15)=0,"NI",IF(AVERAGE('P1'!U15,'P2'!U15)=1,"FI","PI")) -> FI | V15: =IF(AVERAGE('P1'!V15,'P2'!V15)=0,"NI",IF(AVERAGE('P1'!V15,'P2'!V15)=1,"FI","PI")) -> PI | W15: =IF(AVERAGE('P1'!W15,'P2'!W15)=0,"NI",IF(AVERAGE('P1'!W15,'P2'!W15)=1,"FI","PI")) -> PI | X15: =IF(AVERAGE('P1'!X15,'P2'!X15)=0,"NI",IF(AVERAGE('P1'!X15,'P2'!X15)=1,"FI","PI")) -> PI | Y15: =IF(AVERAGE('P1'!Y15,'P2'!Y15)=0,"NI",IF(AVERAGE('P1'!Y15,'P2'!Y15)=1,"FI","PI")) -> FI | Z15: =IF(AVERAGE('P1'!Z15,'P2'!Z15)=0,"NI",IF(AVERAGE('P1'!Z15,'P2'!Z15)=1,"FI","PI")) -> PI | AA15: =IF(AVERAGE('P1'!AA15,'P2'!AA15)=0,"NI",IF(AVERAGE('P1'!AA15,'P2'!AA15)=1,"FI","PI")) -> PI | AB15: =IF(AVERAGE('P1'!AB15,'P2'!AB15)=0,"NI",IF(AVERAGE('P1'!AB15,'P2'!AB15)=1,"FI","PI")) -> PI | AC15: =IF(AVERAGE('P1'!AC15,'P2'!AC15)=0,"NI",IF(AVERAGE('P1'!AC15,'P2'!AC15)=1,"FI","PI")) -> FI | AD15: =IF(AVERAGE('P1'!AD15,'P2'!AD15)=0,"NI",IF(AVERAGE('P1'!AD15,'P2'!AD15)=1,"FI","PI")) -> PI | AE15: =IF(AVERAGE('P1'!AE15,'P2'!AE15)=0,"NI",IF(AVERAGE('P1'!AE15,'P2'!AE15)=1,"FI","PI")) -> FI | AF15: =IF(AVERAGE('P1'!AF15,'P2'!AF15)=0,"NI",IF(AVERAGE('P1'!AF15,'P2'!AF15)=1,"FI","PI")) -> FI
A16: OPF | B16: =IF(ORG!B16=0,"NI",IF(ORG!B16=1,"FI","PI")) -> FI | C16: =IF(ORG!C16=0,"NI",IF(ORG!C16=1,"FI","PI")) -> FI | D16: =IF(ORG!D16=0,"NI",IF(ORG!D16=1,"FI","PI")) -> FI | E16: --- | F16: --- | G16: --- | H16: --- | I16: =IF(ORG!I16=0,"NI",IF(ORG!I16=1,"FI","PI")) -> FI | J16: =IF(ORG!J16=0,"NI",IF(ORG!J16=1,"FI","PI")) -> FI | K16: --- | L16: --- | M16: --- | N16: --- | O16: --- | P16: =IF(ORG!P16=0,"NI",IF(ORG!P16=1,"FI","PI")) -> FI | Q16: =IF(ORG!Q16=0,"NI",IF(ORG!Q16=1,"FI","PI")) -> FI | R16: =IF(ORG!R16=0,"NI",IF(ORG!R16=1,"FI","PI")) -> FI | S16: =IF(ORG!S16=0,"NI",IF(ORG!S16=1,"FI","PI")) -> PI | T16: --- | U16: =IF(ORG!U16=0,"NI",IF(ORG!U16=1,"FI","PI")) -> FI | V16: =IF(ORG!V16=0,"NI",IF(ORG!V16=1,"FI","PI")) -> FI | W16: =IF(ORG!W16=0,"NI",IF(ORG!W16=1,"FI","PI")) -> FI | X16: =IF(ORG!X16=0,"NI",IF(ORG!X16=1,"FI","PI")) -> FI | Y16: =IF(ORG!Y16=0,"NI",IF(ORG!Y16=1,"FI","PI")) -> FI | Z16: =IF(ORG!Z16=0,"NI",IF(ORG!Z16=1,"FI","PI")) -> FI | AA16: =IF(ORG!AA16=0,"NI",IF(ORG!AA16=1,"FI","PI")) -> FI | AB16: =IF(ORG!AB16=0,"NI",IF(ORG!AB16=1,"FI","PI")) -> FI | AC16: =IF(ORG!AC16=0,"NI",IF(ORG!AC16=1,"FI","PI")) -> FI | AD16: =IF(ORG!AD16=0,"NI",IF(ORG!AD16=1,"FI","PI")) -> PI | AE16: =IF(ORG!AE16=0,"NI",IF(ORG!AE16=1,"FI","PI")) -> FI | AF16: =IF(ORG!AF16=0,"NI",IF(ORG!AF16=1,"FI","PI")) -> PI
A17: OPD | B17: =IF(ORG!B17=0,"NI",IF(ORG!B17=1,"FI","PI")) -> FI | C17: =IF(ORG!C17=0,"NI",IF(ORG!C17=1,"FI","PI")) -> FI | D17: =IF(ORG!D17=0,"NI",IF(ORG!D17=1,"FI","PI")) -> FI | E17: =IF(ORG!E17=0,"NI",IF(ORG!E17=1,"FI","PI")) -> PI | F17: =IF(ORG!F17=0,"NI",IF(ORG!F17=1,"FI","PI")) -> PI | G17: =IF(ORG!G17=0,"NI",IF(ORG!G17=1,"FI","PI")) -> FI | H17: =IF(ORG!H17=0,"NI",IF(ORG!H17=1,"FI","PI")) -> FI | I17: --- | J17: --- | K17: --- | L17: --- | M17: --- | N17: --- | O17: --- | P17: --- | Q17: --- | R17: --- | S17: --- | T17: --- | U17: =IF(ORG!U17=0,"NI",IF(ORG!U17=1,"FI","PI")) -> FI | V17: =IF(ORG!V17=0,"NI",IF(ORG!V17=1,"FI","PI")) -> FI | W17: =IF(ORG!W17=0,"NI",IF(ORG!W17=1,"FI","PI")) -> FI | X17: =IF(ORG!X17=0,"NI",IF(ORG!X17=1,"FI","PI")) -> FI | Y17: =IF(ORG!Y17=0,"NI",IF(ORG!Y17=1,"FI","PI")) -> FI | Z17: =IF(ORG!Z17=0,"NI",IF(ORG!Z17=1,"FI","PI")) -> FI | AA17: =IF(ORG!AA17=0,"NI",IF(ORG!AA17=1,"FI","PI")) -> FI | AB17: =IF(ORG!AB17=0,"NI",IF(ORG!AB17=1,"FI","PI")) -> FI | AC17: =IF(ORG!AC17=0,"NI",IF(ORG!AC17=1,"FI","PI")) -> FI | AD17: =IF(ORG!AD17=0,"NI",IF(ORG!AD17=1,"FI","PI")) -> PI | AE17: =IF(ORG!AE17=0,"NI",IF(ORG!AE17=1,"FI","PI")) -> FI | AF17: =IF(ORG!AF17=0,"NI",IF(ORG!AF17=1,"FI","PI")) -> PI
A18: OT | B18: =IF(ORG!B18=0,"NI",IF(ORG!B18=1,"FI","PI")) -> FI | C18: =IF(ORG!C18=0,"NI",IF(ORG!C18=1,"FI","PI")) -> FI | D18: =IF(ORG!D18=0,"NI",IF(ORG!D18=1,"FI","PI")) -> FI | E18: =IF(ORG!E18=0,"NI",IF(ORG!E18=1,"FI","PI")) -> FI | F18: --- | G18: --- | H18: --- | I18: =IF(ORG!I18=0,"NI",IF(ORG!I18=1,"FI","PI")) -> FI | J18: =IF(ORG!J18=0,"NI",IF(ORG!J18=1,"FI","PI")) -> FI | K18: =IF(ORG!K18=0,"NI",IF(ORG!K18=1,"FI","PI")) -> FI | L18: --- | M18: --- | N18: --- | O18: --- | P18: --- | Q18: --- | R18: --- | S18: --- | T18: --- | U18: =IF(ORG!U18=0,"NI",IF(ORG!U18=1,"FI","PI")) -> FI | V18: =IF(ORG!V18=0,"NI",IF(ORG!V18=1,"FI","PI")) -> FI | W18: =IF(ORG!W18=0,"NI",IF(ORG!W18=1,"FI","PI")) -> FI | X18: =IF(ORG!X18=0,"NI",IF(ORG!X18=1,"FI","PI")) -> FI | Y18: =IF(ORG!Y18=0,"NI",IF(ORG!Y18=1,"FI","PI")) -> FI | Z18: =IF(ORG!Z18=0,"NI",IF(ORG!Z18=1,"FI","PI")) -> FI | AA18: =IF(ORG!AA18=0,"NI",IF(ORG!AA18=1,"FI","PI")) -> FI | AB18: =IF(ORG!AB18=0,"NI",IF(ORG!AB18=1,"FI","PI")) -> FI | AC18: =IF(ORG!AC18=0,"NI",IF(ORG!AC18=1,"FI","PI")) -> FI | AD18: =IF(ORG!AD18=0,"NI",IF(ORG!AD18=1,"FI","PI")) -> PI | AE18: =IF(ORG!AE18=0,"NI",IF(ORG!AE18=1,"FI","PI")) -> FI | AF18: =IF(ORG!AF18=0,"NI",IF(ORG!AF18=1,"FI","PI")) -> PI
A19: IPM | B19: =IF(AVERAGE('P1'!B19,'P2'!B19)=0,"NI",IF(AVERAGE('P1'!B19,'P2'!B19)=1,"FI","PI")) -> FI | C19: =IF(AVERAGE('P1'!C19,'P2'!C19)=0,"NI",IF(AVERAGE('P1'!C19,'P2'!C19)=1,"FI","PI")) -> FI | D19: =IF(AVERAGE('P1'!D19,'P2'!D19)=0,"NI",IF(AVERAGE('P1'!D19,'P2'!D19)=1,"FI","PI")) -> FI | E19: =IF(AVERAGE('P1'!E19,'P2'!E19)=0,"NI",IF(AVERAGE('P1'!E19,'P2'!E19)=1,"FI","PI")) -> FI | F19: =IF(AVERAGE('P1'!F19,'P2'!F19)=0,"NI",IF(AVERAGE('P1'!F19,'P2'!F19)=1,"FI","PI")) -> PI | G19: =IF(AVERAGE('P1'!G19,'P2'!G19)=0,"NI",IF(AVERAGE('P1'!G19,'P2'!G19)=1,"FI","PI")) -> FI | H19: =IF(AVERAGE('P1'!H19,'P2'!H19)=0,"NI",IF(AVERAGE('P1'!H19,'P2'!H19)=1,"FI","PI")) -> NI | I19: =IF(AVERAGE('P1'!I19,'P2'!I19)=0,"NI",IF(AVERAGE('P1'!I19,'P2'!I19)=1,"FI","PI")) -> FI | J19: =IF(AVERAGE('P1'!J19,'P2'!J19)=0,"NI",IF(AVERAGE('P1'!J19,'P2'!J19)=1,"FI","PI")) -> FI | K19: =IF(AVERAGE('P1'!K19,'P2'!K19)=0,"NI",IF(AVERAGE('P1'!K19,'P2'!K19)=1,"FI","PI")) -> FI | L19: --- | M19: --- | N19: --- | O19: --- | P19: --- | Q19: --- | R19: --- | S19: --- | T19: --- | U19: =IF(AVERAGE('P1'!U19,'P2'!U19)=0,"NI",IF(AVERAGE('P1'!U19,'P2'!U19)=1,"FI","PI")) -> FI | V19: =IF(AVERAGE('P1'!V19,'P2'!V19)=0,"NI",IF(AVERAGE('P1'!V19,'P2'!V19)=1,"FI","PI")) -> PI | W19: =IF(AVERAGE('P1'!W19,'P2'!W19)=0,"NI",IF(AVERAGE('P1'!W19,'P2'!W19)=1,"FI","PI")) -> PI | X19: =IF(AVERAGE('P1'!X19,'P2'!X19)=0,"NI",IF(AVERAGE('P1'!X19,'P2'!X19)=1,"FI","PI")) -> PI | Y19: =IF(AVERAGE('P1'!Y19,'P2'!Y19)=0,"NI",IF(AVERAGE('P1'!Y19,'P2'!Y19)=1,"FI","PI")) -> FI | Z19: =IF(AVERAGE('P1'!Z19,'P2'!Z19)=0,"NI",IF(AVERAGE('P1'!Z19,'P2'!Z19)=1,"FI","PI")) -> PI | AA19: =IF(AVERAGE('P1'!AA19,'P2'!AA19)=0,"NI",IF(AVERAGE('P1'!AA19,'P2'!AA19)=1,"FI","PI")) -> PI | AB19: =IF(AVERAGE('P1'!AB19,'P2'!AB19)=0,"NI",IF(AVERAGE('P1'!AB19,'P2'!AB19)=1,"FI","PI")) -> PI | AC19: =IF(AVERAGE('P1'!AC19,'P2'!AC19)=0,"NI",IF(AVERAGE('P1'!AC19,'P2'!AC19)=1,"FI","PI")) -> FI | AD19: =IF(AVERAGE('P1'!AD19,'P2'!AD19)=0,"NI",IF(AVERAGE('P1'!AD19,'P2'!AD19)=1,"FI","PI")) -> PI | AE19: =IF(AVERAGE('P1'!AE19,'P2'!AE19)=0,"NI",IF(AVERAGE('P1'!AE19,'P2'!AE19)=1,"FI","PI")) -> FI | AF19: =IF(AVERAGE('P1'!AF19,'P2'!AF19)=0,"NI",IF(AVERAGE('P1'!AF19,'P2'!AF19)=1,"FI","PI")) -> FI
A20: RSKM | B20: =IF(AVERAGE('P1'!B20,'P2'!B20)=0,"NI",IF(AVERAGE('P1'!B20,'P2'!B20)=1,"FI","PI")) -> FI | C20: =IF(AVERAGE('P1'!C20,'P2'!C20)=0,"NI",IF(AVERAGE('P1'!C20,'P2'!C20)=1,"FI","PI")) -> FI | D20: =IF(AVERAGE('P1'!D20,'P2'!D20)=0,"NI",IF(AVERAGE('P1'!D20,'P2'!D20)=1,"FI","PI")) -> FI | E20: --- | F20: --- | G20: --- | H20: --- | I20: =IF(AVERAGE('P1'!I20,'P2'!I20)=0,"NI",IF(AVERAGE('P1'!I20,'P2'!I20)=1,"FI","PI")) -> FI | J20: =IF(AVERAGE('P1'!J20,'P2'!J20)=0,"NI",IF(AVERAGE('P1'!J20,'P2'!J20)=1,"FI","PI")) -> FI | K20: --- | L20: --- | M20: --- | N20: --- | O20: --- | P20: =IF(AVERAGE('P1'!P20,'P2'!P20)=0,"NI",IF(AVERAGE('P1'!P20,'P2'!P20)=1,"FI","PI")) -> FI | Q20: =IF(AVERAGE('P1'!Q20,'P2'!Q20)=0,"NI",IF(AVERAGE('P1'!Q20,'P2'!Q20)=1,"FI","PI")) -> FI | R20: --- | S20: --- | T20: --- | U20: =IF(AVERAGE('P1'!U20,'P2'!U20)=0,"NI",IF(AVERAGE('P1'!U20,'P2'!U20)=1,"FI","PI")) -> FI | V20: =IF(AVERAGE('P1'!V20,'P2'!V20)=0,"NI",IF(AVERAGE('P1'!V20,'P2'!V20)=1,"FI","PI")) -> PI | W20: =IF(AVERAGE('P1'!W20,'P2'!W20)=0,"NI",IF(AVERAGE('P1'!W20,'P2'!W20)=1,"FI","PI")) -> PI | X20: =IF(AVERAGE('P1'!X20,'P2'!X20)=0,"NI",IF(AVERAGE('P1'!X20,'P2'!X20)=1,"FI","PI")) -> PI | Y20: =IF(AVERAGE('P1'!Y20,'P2'!Y20)=0,"NI",IF(AVERAGE('P1'!Y20,'P2'!Y20)=1,"FI","PI")) -> FI | Z20: =IF(AVERAGE('P1'!Z20,'P2'!Z20)=0,"NI",IF(AVERAGE('P1'!Z20,'P2'!Z20)=1,"FI","PI")) -> PI | AA20: =IF(AVERAGE('P1'!AA20,'P2'!AA20)=0,"NI",IF(AVERAGE('P1'!AA20,'P2'!AA20)=1,"FI","PI")) -> PI | AB20: =IF(AVERAGE('P1'!AB20,'P2'!AB20)=0,"NI",IF(AVERAGE('P1'!AB20,'P2'!AB20)=1,"FI","PI")) -> PI | AC20: =IF(AVERAGE('P1'!AC20,'P2'!AC20)=0,"NI",IF(AVERAGE('P1'!AC20,'P2'!AC20)=1,"FI","PI")) -> FI | AD20: =IF(AVERAGE('P1'!AD20,'P2'!AD20)=0,"NI",IF(AVERAGE('P1'!AD20,'P2'!AD20)=1,"FI","PI")) -> PI | AE20: =IF(AVERAGE('P1'!AE20,'P2'!AE20)=0,"NI",IF(AVERAGE('P1'!AE20,'P2'!AE20)=1,"FI","PI")) -> FI | AF20: =IF(AVERAGE('P1'!AF20,'P2'!AF20)=0,"NI",IF(AVERAGE('P1'!AF20,'P2'!AF20)=1,"FI","PI")) -> FI
A21: DAR | B21: =IF(AVERAGE('P1'!B21,'P2'!B21)=0,"NI",IF(AVERAGE('P1'!B21,'P2'!B21)=1,"FI","PI")) -> FI | C21: =IF(AVERAGE('P1'!C21,'P2'!C21)=0,"NI",IF(AVERAGE('P1'!C21,'P2'!C21)=1,"FI","PI")) -> PI | D21: =IF(AVERAGE('P1'!D21,'P2'!D21)=0,"NI",IF(AVERAGE('P1'!D21,'P2'!D21)=1,"FI","PI")) -> PI | E21: =IF(AVERAGE('P1'!E21,'P2'!E21)=0,"NI",IF(AVERAGE('P1'!E21,'P2'!E21)=1,"FI","PI")) -> PI | F21: =IF(AVERAGE('P1'!F21,'P2'!F21)=0,"NI",IF(AVERAGE('P1'!F21,'P2'!F21)=1,"FI","PI")) -> PI | G21: =IF(AVERAGE('P1'!G21,'P2'!G21)=0,"NI",IF(AVERAGE('P1'!G21,'P2'!G21)=1,"FI","PI")) -> PI | H21: --- | I21: --- | J21: --- | K21: --- | L21: --- | M21: --- | N21: --- | O21: --- | P21: --- | Q21: --- | R21: --- | S21: --- | T21: --- | U21: =IF(AVERAGE('P1'!U21,'P2'!U21)=0,"NI",IF(AVERAGE('P1'!U21,'P2'!U21)=1,"FI","PI")) -> FI | V21: =IF(AVERAGE('P1'!V21,'P2'!V21)=0,"NI",IF(AVERAGE('P1'!V21,'P2'!V21)=1,"FI","PI")) -> PI | W21: =IF(AVERAGE('P1'!W21,'P2'!W21)=0,"NI",IF(AVERAGE('P1'!W21,'P2'!W21)=1,"FI","PI")) -> PI | X21: =IF(AVERAGE('P1'!X21,'P2'!X21)=0,"NI",IF(AVERAGE('P1'!X21,'P2'!X21)=1,"FI","PI")) -> PI | Y21: =IF(AVERAGE('P1'!Y21,'P2'!Y21)=0,"NI",IF(AVERAGE('P1'!Y21,'P2'!Y21)=1,"FI","PI")) -> FI | Z21: =IF(AVERAGE('P1'!Z21,'P2'!Z21)=0,"NI",IF(AVERAGE('P1'!Z21,'P2'!Z21)=1,"FI","PI")) -> PI | AA21: =IF(AVERAGE('P1'!AA21,'P2'!AA21)=0,"NI",IF(AVERAGE('P1'!AA21,'P2'!AA21)=1,"FI","PI")) -> PI | AB21: =IF(AVERAGE('P1'!AB21,'P2'!AB21)=0,"NI",IF(AVERAGE('P1'!AB21,'P2'!AB21)=1,"FI","PI")) -> PI | AC21: =IF(AVERAGE('P1'!AC21,'P2'!AC21)=0,"NI",IF(AVERAGE('P1'!AC21,'P2'!AC21)=1,"FI","PI")) -> FI | AD21: =IF(AVERAGE('P1'!AD21,'P2'!AD21)=0,"NI",IF(AVERAGE('P1'!AD21,'P2'!AD21)=1,"FI","PI")) -> PI | AE21: =IF(AVERAGE('P1'!AE21,'P2'!AE21)=0,"NI",IF(AVERAGE('P1'!AE21,'P2'!AE21)=1,"FI","PI")) -> FI | AF21: =IF(AVERAGE('P1'!AF21,'P2'!AF21)=0,"NI",IF(AVERAGE('P1'!AF21,'P2'!AF21)=1,"FI","PI")) -> FI
A23: SP&GP: | M23: 强项：
A24: Fully Implemented | F24: FI | G24: =COUNTIF($B$4:$AF$21,F24) -> 189 | H24: =G24/SUM(G$24:G$26) -> 0.5591715976 | N24: 1、 | O24: 项目开发过程中客户与上级领导的参与度高，通过定期会议与项目组沟通。
A25: Partially Implemented | F25: PI | G25: =COUNTIF($B$4:$AF$21,F25) -> 144 | H25: =G25/SUM(G$24:G$26) -> 0.426035503
A26: Not Implemented | F26: NI | G26: =COUNTIF($B$4:$AF$21,F26) -> 5 | H26: =G26/SUM(G$24:G$26) -> 0.01479289941
A27: Not Yet | F27: / | G27: / | H27: /
A28: Not Rated | F28: / | G28: / | H28: / | M28: 弱项：
A29: No Practice | F29: / | G29: / | H29: / | N29: 1、 | O29: 组织级工作监控力度较弱，上级领导关注度不够；
N30: 2、 | O30: 验收活动管控较少，可能影响后期维护工作；
A31: SP: | N31: 3、 | O31: 部分项目测试环节薄弱，可能影响产品质量；
A32: Fully Implemented | F32: FI | G32: =COUNTIF($B$4:$T$21,F32) -> 78 | H32: =G32/SUM(G$32:G$34) -> 0.5820895522 | N32: 4、 | O32: 部分项目策划和监控偏工程类任务，管理和支持类任务较少。
A33: Partially Implemented | F33: PI | G33: =COUNTIF($B$4:$T$21,F33) -> 51 | H33: =G33/SUM(G$32:G$34) -> 0.3805970149
A34: Not Implemented | F34: NI | G34: =COUNTIF($B$4:$T$21,F34) -> 5 | H34: =G34/SUM(G$32:G$34) -> 0.03731343284

Sheet ORG
A1: Practice Characterization
A2: Process Areas | B2: Specific Practices | U2: Generic Practices
B3: SP1.1 | C3: SP1.2 | D3: SP1.3 | E3: SP1.4 | F3: SP1.5 | G3: SP1.6 | H3: SP1.7 | I3: SP2.1 | J3: SP2.2 | K3: SP2.3 | L3: SP2.4 | M3: SP2.5 | N3: SP2.6 | O3: SP2.7 | P3: SP3.1 | Q3: SP3.2 | R3: SP3.3 | S3: SP3.4 | T3: SP3.5 | U3: GP2.1 | V3: GP2.2 | W3: GP2.3 | X3: GP2.4 | Y3: GP2.5 | Z3: GP2.6 | AA3: GP2.7 | AB3: GP2.8 | AC3: GP2.9 | AD3: GP2.10 | AE3: GP3.1 | AF3: GP3.2
A4: REQM | B4: / | C4: / | D4: / | E4: / | F4: / | G4: --- | H4: --- | I4: --- | J4: --- | K4: --- | L4: --- | M4: --- | N4: --- | O4: --- | P4: --- | Q4: --- | R4: --- | S4: --- | T4: --- | U4: / | V4: / | W4: / | X4: / | Y4: / | Z4: / | AA4: / | AB4: / | AC4: / | AD4: / | AE4: / | AF4: /
A5: PP | B5: / | C5: / | D5: / | E5: / | F5: --- | G5: --- | H5: --- | I5: / | J5: / | K5: / | L5: / | M5: / | N5: / | O5: / | P5: / | Q5: / | R5: / | S5: --- | T5: --- | U5: / | V5: / | W5: / | X5: / | Y5: / | Z5: / | AA5: / | AB5: / | AC5: / | AD5: / | AE5: / | AF5: /
A6: PMC | B6: / | C6: / | D6: / | E6: / | F6: / | G6: / | H6: / | I6: / | J6: / | K6: / | L6: --- | M6: --- | N6: --- | O6: --- | P6: --- | Q6: --- | R6: --- | S6: --- | T6: --- | U6: / | V6: / | W6: / | X6: / | Y6: / | Z6: / | AA6: / | AB6: / | AC6: / | AD6: / | AE6: / | AF6: /
A7: SAM | B7: / | C7: / | D7: / | E7: --- | F7: --- | G7: --- | H7: --- | I7: / | J7: / | K7: / | L7: --- | M7: --- | N7: --- | O7: --- | P7: --- | Q7: --- | R7: --- | S7: --- | T7: --- | U7: / | V7: / | W7: / | X7: / | Y7: / | Z7: / | AA7: / | AB7: / | AC7: / | AD7: / | AE7: / | AF7: /
A8: MA | B8: / | C8: / | D8: / | E8: / | F8: --- | G8: --- | H8: --- | I8: / | J8: / | K8: / | L8: / | M8: --- | N8: --- | O8: --- | P8: --- | Q8: --- | R8: --- | S8: --- | T8: --- | U8: / | V8: / | W8: / | X8: / | Y8: / | Z8: / | AA8: / | AB8: / | AC8: / | AD8: / | AE8: / | AF8: /
A9: PPQA | B9: / | C9: / | D9: --- | E9: --- | F9: --- | G9: --- | H9: --- | I9: / | J9: / | K9: --- | L9: --- | M9: --- | N9: --- | O9: --- | P9: --- | Q9: --- | R9: --- | S9: --- | T9: --- | U9: / | V9: / | W9: / | X9: / | Y9: / | Z9: / | AA9: / | AB9: / | AC9: / | AD9: / | AE9: / | AF9: /
A10: CM | B10: / | C10: / | D10: / | E10: --- | F10: --- | G10: --- | H10: --- | I10: / | J10: / | K10: --- | L10: --- | M10: --- | N10: --- | O10: --- | P10: / | Q10: / | R10: --- | S10: --- | T10: --- | U10: / | V10: / | W10: / | X10: / | Y10: / | Z10: / | AA10: / | AB10: / | AC10: / | AD10: / | AE10: / | AF10: /
A11: RD | B11: / | C11: / | D11: --- | E11: --- | F11: --- | G11: --- | H11: --- | I11: / | J11: / | K11: / | L11: --- | M11: --- | N11: --- | O11: --- | P11: / | Q11: / | R11: / | S11: / | T11: / | U11: / | V11: / | W11: / | X11: / | Y11: / | Z11: / | AA11: / | AB11: / | AC11: / | AD11: / | AE11: / | AF11: /
A12: TS | B12: / | C12: / | D12: --- | E12: --- | F12: --- | G12: --- | H12: --- | I12: / | J12: / | K12: / | L12: / | M12: --- | N12: --- | O12: --- | P12: / | Q12: / | R12: --- | S12: --- | T12: --- | U12: / | V12: / | W12: / | X12: / | Y12: / | Z12: / | AA12: / | AB12: / | AC12: / | AD12: / | AE12: / | AF12: /
A13: PI | B13: / | C13: / | D13: / | E13: --- | F13: --- | G13: --- | H13: --- | I13: / | J13: / | K13: --- | L13: --- | M13: --- | N13: --- | O13: --- | P13: / | Q13: / | R13: / | S13: / | T13: --- | U13: / | V13: / | W13: / | X13: / | Y13: / | Z13: / | AA13: / | AB13: / | AC13: / | AD13: / | AE13: / | AF13: /
A14: VER | B14: / | C14: / | D14: / | E14: --- | F14: --- | G14: --- | H14: --- | I14: / | J14: / | K14: / | L14: --- | M14: --- | N14: --- | O14: --- | P14: / | Q14: / | R14: --- | S14: --- | T14: --- | U14: / | V14: / | W14: / | X14: / | Y14: / | Z14: / | AA14: / | AB14: / | AC14: / | AD14: / | AE14: / | AF14: /
A15: VAL | B15: / | C15: / | D15: / | E15: --- | F15: --- | G15: --- | H15: --- | I15: / | J15: / | K15: --- | L15: --- | M15: --- | N15: --- | O15: --- | P15: --- | Q15: --- | R15: --- | S15: --- | T15: --- | U15: / | V15: / | W15: / | X15: / | Y15: / | Z15: / | AA15: / | AB15: / | AC15: / | AD15: / | AE15: / | AF15: /
A16: OPF | B16: 1 | C16: 1 | D16: 1 | E16: --- | F16: --- | G16: --- | H16: --- | I16: 1 | J16: 1 | K16: --- | L16: --- | M16: --- | N16: --- | O16: --- | P16: 1 | Q16: 1 | R16: 1 | S16: 0.5 | T16: --- | U16: 1 | V16: 1 | W16: 1 | X16: 1 | Y16: 1 | Z16: 1 | AA16: 1 | AB16: 1 | AC16: 1 | AD16: 0.5 | AE16: 1 | AF16: 0.5
A17: OPD | B17: 1 | C17: 1 | D17: 1 | E17: 0.5 | F17: 0.5 | G17: 1 | H17: 1 | I17: --- | J17: --- | K17: --- | L17: --- | M17: --- | N17: --- | O17: --- | P17: --- | Q17: --- | R17: --- | S17: --- | T17: --- | U17: 1 | V17: 1 | W17: 1 | X17: 1 | Y17: 1 | Z17: 1 | AA17: 1 | AB17: 1 | AC17: 1 | AD17: 0.5 | AE17: 1 | AF17: 0.5
A18: OT | B18: 1 | C18: 1 | D18: 1 | E18: 1 | F18: --- | G18: --- | H18: --- | I18: 1 | J18: 1 | K18: 1 | L18: --- | M18: --- | N18: --- | O18: --- | P18: --- | Q18: --- | R18: --- | S18: --- | T18: --- | U18: 1 | V18: 1 | W18: 1 | X18: 1 | Y18: 1 | Z18: 1 | AA18: 1 | AB18: 1 | AC18: 1 | AD18: 0.5 | AE18: 1 | AF18: 0.5
A19: IPM | B19: / | C19: / | D19: / | E19: / | F19: / | G19: / | H19: / | I19: / | J19: / | K19: / | L19: --- | M19: --- | N19: --- | O19: --- | P19: --- | Q19: --- | R19: --- | S19: --- | T19: --- | U19: / | V19: / | W19: / | X19: / | Y19: / | Z19: / | AA19: / | AB19: / | AC19: / | AD19: / | AE19: / | AF19: /
A20: RSKM | B20: / | C20: / | D20: / | E20: --- | F20: --- | G20: --- | H20: --- | I20: / | J20: / | K20: --- | L20: --- | M20: --- | N20: --- | O20: --- | P20: / | Q20: / | R20: --- | S20: --- | T20: --- | U20: / | V20: / | W20: / | X20: / | Y20: / | Z20: / | AA20: / | AB20: / | AC20: / | AD20: / | AE20: / | AF20: /
A21: DAR | B21: / | C21: / | D21: / | E21: / | F21: / | G21: / | H21: --- | I21: --- | J21: --- | K21: --- | L21: --- | M21: --- | N21: --- | O21: --- | P21: --- | Q21: --- | R21: --- | S21: --- | T21: --- | U21: / | V21: / | W21: / | X21: / | Y21: / | Z21: / | AA21: / | AB21: / | AC21: / | AD21: / | AE21: / | AF21: /
A23: SP&GP: | M23: 说明：此页为组织级预评估情况。
A24: 等级 | F24: 分值 | G24: 个数 | H24: 占比
A25: 完全满足要求 | F25: 1 | G25: =COUNTIF($B$4:$AF$21,F25) -> 50 | H25: =G25/SUM(G$25:G$27) -> 0.8474576271
A26: 部分满足要求 | F26: 0.5 | G26: =COUNTIF($B$4:$AF$21,F26) -> 9 | H26: =G26/SUM(G$25:G$27) -> 0.1525423729
A27: 不满足要求 | F27: 0 | G27: =COUNTIF($B$4:$AF$21,F27) -> 0 | H27: =G27/SUM(G$25:G$27) -> 0
A28: 尚未开始 | F28: NY | G28: / | H28: /
A29: 非本次评估范围 | F29: / | G29: / | H29: /
A31: SP:
A32: 等级 | F32: 分值 | G32: 个数 | H32: 占比
A33: 完全满足要求 | F33: 1 | G33: =COUNTIF($B$4:$T$21,F33) -> 20 | H33: =G33/SUM(G$33:G$36) -> 0.8695652174
A34: 部分满足要求 | F34: 0.5 | G34: =COUNTIF($B$4:$T$21,F34) -> 3 | H34: =G34/SUM(G$33:G$36) -> 0.1304347826
A35: 不满足要求 | F35: 0 | G35: =COUNTIF($B$4:$T$21,F35) -> 0 | H35: =G35/SUM(G$33:G$36) -> 0
A36: 尚未开始 | F36: NY | G36: / | H36: /
A37: 非本次评估范围 | F37: / | G37: / | H37: /

Sheet P1
A1: Practice Characterization
A2: Process Areas | B2: Specific Practices | U2: Generic Practices
B3: SP1.1 | C3: SP1.2 | D3: SP1.3 | E3: SP1.4 | F3: SP1.5 | G3: SP1.6 | H3: SP1.7 | I3: SP2.1 | J3: SP2.2 | K3: SP2.3 | L3: SP2.4 | M3: SP2.5 | N3: SP2.6 | O3: SP2.7 | P3: SP3.1 | Q3: SP3.2 | R3: SP3.3 | S3: SP3.4 | T3: SP3.5 | U3: GP2.1 | V3: GP2.2 | W3: GP2.3 | X3: GP2.4 | Y3: GP2.5 | Z3: GP2.6 | AA3: GP2.7 | AB3: GP2.8 | AC3: GP2.9 | AD3: GP2.10 | AE3: GP3.1 | AF3: GP3.2
A4: REQM | B4: 1 | C4: 1 | D4: 1 | E4: 0.5 | F4: 1 | G4: --- | H4: --- | I4: --- | J4: --- | K4: --- | L4: --- | M4: --- | N4: --- | O4: --- | P4: --- | Q4: --- | R4: --- | S4: --- | T4: --- | U4: 1 | V4: 1 | W4: 1 | X4: 1 | Y4: 1 | Z4: 1 | AA4: 1 | AB4: 1 | AC4: 1 | AD4: 1 | AE4: 1 | AF4: 1
A5: PP | B5: 1 | C5: 1 | D5: 1 | E5: 1 | F5: --- | G5: --- | H5: --- | I5: 1 | J5: 1 | K5: 1 | L5: 1 | M5: 1 | N5: 1 | O5: 1 | P5: 1 | Q5: 1 | R5: 1 | S5: --- | T5: --- | U5: 1 | V5: 1 | W5: 1 | X5: 1 | Y5: 1 | Z5: 1 | AA5: 1 | AB5: 1 | AC5: 1 | AD5: 1 | AE5: 1 | AF5: 1
A6: PMC | B6: 1 | C6: 1 | D6: 1 | E6: 1 | F6: 1 | G6: 1 | H6: 1 | I6: 1 | J6: 1 | K6: 1 | L6: --- | M6: --- | N6: --- | O6: --- | P6: --- | Q6: --- | R6: --- | S6: --- | T6: --- | U6: 1 | V6: 1 | W6: 1 | X6: 1 | Y6: 1 | Z6: 1 | AA6: 1 | AB6: 1 | AC6: 1 | AD6: 1 | AE6: 1 | AF6: 1
A7: SAM | B7: / | C7: / | D7: / | E7: --- | F7: --- | G7: --- | H7: --- | I7: / | J7: / | K7: / | L7: --- | M7: --- | N7: --- | O7: --- | P7: --- | Q7: --- | R7: --- | S7: --- | T7: --- | U7: / | V7: / | W7: / | X7: / | Y7: / | Z7: / | AA7: / | AB7: / | AC7: / | AD7: / | AE7: / | AF7: /
A8: MA | B8: 1 | C8: 1 | D8: 1 | E8: 1 | F8: --- | G8: --- | H8: --- | I8: 1 | J8: 1 | K8: 1 | L8: 1 | M8: --- | N8: --- | O8: --- | P8: --- | Q8: --- | R8: --- | S8: --- | T8: --- | U8: 1 | V8: 1 | W8: 1 | X8: 1 | Y8: 1 | Z8: 1 | AA8: 1 | AB8: 1 | AC8: 1 | AD8: 1 | AE8: 1 | AF8: 1
A9: PPQA | B9: 1 | C9: 1 | D9: --- | E9: --- | F9: --- | G9: --- | H9: --- | I9: 1 | J9: 1 | K9: --- | L9: --- | M9: --- | N9: --- | O9: --- | P9: --- | Q9: --- | R9: --- | S9: --- | T9: --- | U9: 1 | V9: 1 | W9: 1 | X9: 1 | Y9: 1 | Z9: 1 | AA9: 1 | AB9: 1 | AC9: 1 | AD9: 0.5 | AE9: 1 | AF9: 1
A10: CM | B10: 1 | C10: 1 | D10: 1 | E10: --- | F10: --- | G10: --- | H10: --- | I10: 1 | J10: 1 | K10: --- | L10: --- | M10: --- | N10: --- | O10: --- | P10: 1 | Q10: 1 | R10: --- | S10: --- | T10: --- | U10: 1 | V10: 1 | W10: 1 | X10: 1 | Y10: 1 | Z10: 1 | AA10: 1 | AB10: 1 | AC10: 1 | AD10: 1 | AE10: 1 | AF10: 1
A11: RD | B11: 1 | C11: 1 | D11: --- | E11: --- | F11: --- | G11: --- | H11: --- | I11: 1 | J11: 1 | K11: 1 | L11: --- | M11: --- | N11: --- | O11: --- | P11: 1 | Q11: 1 | R11: 1 | S11: 1 | T11: 1 | U11: 1 | V11: 1 | W11: 1 | X11: 1 | Y11: 1 | Z11: 1 | AA11: 1 | AB11: 1 | AC11: 1 | AD11: 1 | AE11: 1 | AF11: 1
A12: TS | B12: 1 | C12: 1 | D12: --- | E12: --- | F12: --- | G12: --- | H12: --- | I12: 1 | J12: 1 | K12: 1 | L12: 1 | M12: --- | N12: --- | O12: --- | P12: 1 | Q12: 1 | R12: --- | S12: --- | T12: --- | U12: 1 | V12: 1 | W12: 1 | X12: 1 | Y12: 1 | Z12: 1 | AA12: 1 | AB12: 1 | AC12: 1 | AD12: 1 | AE12: 1 | AF12: 1
A13: PI | B13: 1 | C13: 1 | D13: 1 | E13: --- | F13: --- | G13: --- | H13: --- | I13: 1 | J13: 1 | K13: --- | L13: --- | M13: --- | N13: --- | O13: --- | P13: 1 | Q13: 0.5 | R13: 0.5 | S13: 1 | T13: --- | U13: 1 | V13: 1 | W13: 1 | X13: 1 | Y13: 1 | Z13: 1 | AA13: 1 | AB13: 1 | AC13: 1 | AD13: 1 | AE13: 1 | AF13: 1
A14: VER | B14: 1 | C14: 1 | D14: 1 | E14: --- | F14: --- | G14: --- | H14: --- | I14: 1 | J14: 1 | K14: 1 | L14: --- | M14: --- | N14: --- | O14: --- | P14: 0.5 | Q14: 0 | R14: --- | S14: --- | T14: --- | U14: 1 | V14: 1 | W14: 1 | X14: 1 | Y14: 1 | Z14: 1 | AA14: 1 | AB14: 1 | AC14: 1 | AD14: 1 | AE14: 1 | AF14: 1
A15: VAL | B15: 1 | C15: 1 | D15: NY | E15: --- | F15: --- | G15: --- | H15: --- | I15: NY | J15: NY | K15: --- | L15: --- | M15: --- | N15: --- | O15: --- | P15: --- | Q15: --- | R15: --- | S15: --- | T15: --- | U15: 1 | V15: 1 | W15: 1 | X15: 1 | Y15: 1 | Z15: 1 | AA15: 1 | AB15: 1 | AC15: 1 | AD15: 1 | AE15: 1 | AF15: 1
A16: OPF | B16: / | C16: / | D16: / | E16: --- | F16: --- | G16: --- | H16: --- | I16: / | J16: / | K16: --- | L16: --- | M16: --- | N16: --- | O16: --- | P16: / | Q16: / | R16: / | S16: / | T16: --- | U16: / | V16: / | W16: / | X16: / | Y16: / | Z16: / | AA16: / | AB16: / | AC16: / | AD16: / | AE16: / | AF16: /
A17: OPD | B17: / | C17: / | D17: / | E17: / | F17: / | G17: / | H17: / | I17: --- | J17: --- | K17: --- | L17: --- | M17: --- | N17: --- | O17: --- | P17: --- | Q17: --- | R17: --- | S17: --- | T17: --- | U17: / | V17: / | W17: / | X17: / | Y17: / | Z17: / | AA17: / | AB17: / | AC17: / | AD17: / | AE17: / | AF17: /
A18: OT | B18: / | C18: / | D18: / | E18: / | F18: --- | G18: --- | H18: --- | I18: / | J18: / | K18: / | L18: --- | M18: --- | N18: --- | O18: --- | P18: --- | Q18: --- | R18: --- | S18: --- | T18: --- | U18: / | V18: / | W18: / | X18: / | Y18: / | Z18: / | AA18: / | AB18: / | AC18: / | AD18: / | AE18: / | AF18: /
A19: IPM | B19: 1 | C19: 1 | D19: 1 | E19: 1 | F19: 1 | G19: 1 | H19: NY | I19: 1 | J19: 1 | K19: 1 | L19: --- | M19: --- | N19: --- | O19: --- | P19: --- | Q19: --- | R19: --- | S19: --- | T19: --- | U19: 1 | V19: 1 | W19: 1 | X19: 1 | Y19: 1 | Z19: 1 | AA19: 1 | AB19: 1 | AC19: 1 | AD19: 1 | AE19: 1 | AF19: 1
A20: RSKM | B20: 1 | C20: 1 | D20: 1 | E20: --- | F20: --- | G20: --- | H20: --- | I20: 1 | J20: 1 | K20: --- | L20: --- | M20: --- | N20: --- | O20: --- | P20: 1 | Q20: 1 | R20: --- | S20: --- | T20: --- | U20: 1 | V20: 1 | W20: 1 | X20: 1 | Y20: 1 | Z20: 1 | AA20: 1 | AB20: 1 | AC20: 1 | AD20: 1 | AE20: 1 | AF20: 1
A21: DAR | B21: 1 | C21: 1 | D21: 1 | E21: 1 | F21: 1 | G21: 1 | H21: --- | I21: --- | J21: --- | K21: --- | L21: --- | M21: --- | N21: --- | O21: --- | P21: --- | Q21: --- | R21: --- | S21: --- | T21: --- | U21: 1 | V21: 1 | W21: 1 | X21: 1 | Y21: 1 | Z21: 1 | AA21: 1 | AB21: 1 | AC21: 1 | AD21: 1 | AE21: 1 | AF21: 1
A23: SP&GP: | M23: 说明：此页为项目1预评估情况。
A24: 等级 | F24: 分值 | G24: 个数 | H24: 占比
A25: 完全满足要求 | F25: 1 | G25: =COUNTIF($B$4:$AF$21,F25) -> 269 | H25: =G25/SUM(G$25:G$27) -> 0.9781818182
A26: 部分满足要求 | F26: 0.5 | G26: =COUNTIF($B$4:$AF$21,F26) -> 5 | H26: =G26/SUM(G$25:G$27) -> 0.01818181818
A27: 不满足要求 | F27: 0 | G27: =COUNTIF($B$4:$AF$21,F27) -> 1 | H27: =G27/SUM(G$25:G$27) -> 0.003636363636
A28: 尚未开始 | F28: NY | G28: / | H28: /
A29: 非本次评估范围 | F29: / | G29: / | H29: /
A31: SP:
A32: 等级 | F32: 分值 | G32: 个数 | H32: 占比
A33: 完全满足要求 | F33: 1 | G33: =COUNTIF($B$4:$T$21,F33) -> 102 | H33: =G33/SUM(G$33:G$36) -> 0.953271028
A34: 部分满足要求 | F34: 0.5 | G34: =COUNTIF($B$4:$T$21,F34) -> 4 | H34: =G34/SUM(G$33:G$36) -> 0.03738317757
A35: 不满足要求 | F35: 0 | G35: =COUNTIF($B$4:$T$21,F35) -> 1 | H35: =G35/SUM(G$33:G$36) -> 0.009345794393
A36: 尚未开始 | F36: NY | G36: / | H36: /
A37: 非本次评估范围 | F37: / | G37: / | H37: /

Sheet P2
A1: Practice Characterization
A2: Process Areas | B2: Specific Practices | U2: Generic Practices
B3: SP1.1 | C3: SP1.2 | D3: SP1.3 | E3: SP1.4 | F3: SP1.5 | G3: SP1.6 | H3: SP1.7 | I3: SP2.1 | J3: SP2.2 | K3: SP2.3 | L3: SP2.4 | M3: SP2.5 | N3: SP2.6 | O3: SP2.7 | P3: SP3.1 | Q3: SP3.2 | R3: SP3.3 | S3: SP3.4 | T3: SP3.5 | U3: GP2.1 | V3: GP2.2 | W3: GP2.3 | X3: GP2.4 | Y3: GP2.5 | Z3: GP2.6 | AA3: GP2.7 | AB3: GP2.8 | AC3: GP2.9 | AD3: GP2.10 | AE3: GP3.1 | AF3: GP3.2
A4: REQM | B4: 1 | C4: 0.5 | D4: 0.5 | E4: 0.5 | F4: 0 | G4: --- | H4: --- | I4: --- | J4: --- | K4: --- | L4: --- | M4: --- | N4: --- | O4: --- | P4: --- | Q4: --- | R4: --- | S4: --- | T4: --- | U4: 1 | V4: 0.5 | W4: 0.5 | X4: 0.5 | Y4: 1 | Z4: 1 | AA4: 0.5 | AB4: 0.5 | AC4: 1 | AD4: 0.5 | AE4: 1 | AF4: 1
A5: PP | B5: 0.5 | C5: 0.5 | D5: 1 | E5: 0.5 | F5: --- | G5: --- | H5: --- | I5: 0.5 | J5: 1 | K5: 1 | L5: 1 | M5: 1 | N5: 0 | O5: 1 | P5: 0 | Q5: 1 | R5: 0 | S5: --- | T5: --- | U5: 1 | V5: 1 | W5: 1 | X5: 1 | Y5: 1 | Z5: 1 | AA5: 0 | AB5: 0 | AC5: 1 | AD5: 0 | AE5: 1 | AF5: 1
A6: PMC | B6: 0.5 | C6: 0.5 | D6: 1 | E6: 0.5 | F6: 0.5 | G6: 0 | H6: 0 | I6: 1 | J6: 1 | K6: 1 | L6: --- | M6: --- | N6: --- | O6: --- | P6: --- | Q6: --- | R6: --- | S6: --- | T6: --- | U6: 1 | V6: 0.5 | W6: 0.5 | X6: 0.5 | Y6: 1 | Z6: 0.5 | AA6: 0.5 | AB6: 0.5 | AC6: 1 | AD6: 0.5 | AE6: 1 | AF6: 1
A7: SAM | B7: / | C7: / | D7: / | E7: --- | F7: --- | G7: --- | H7: --- | I7: / | J7: / | K7: / | L7: --- | M7: --- | N7: --- | O7: --- | P7: --- | Q7: --- | R7: --- | S7: --- | T7: --- | U7: / | V7: / | W7: / | X7: / | Y7: / | Z7: / | AA7: / | AB7: / | AC7: / | AD7: / | AE7: / | AF7: /
A8: MA | B8: 1 | C8: 1 | D8: 1 | E8: 1 | F8: --- | G8: --- | H8: --- | I8: 0 | J8: 0 | K8: 0.5 | L8: 0 | M8: --- | N8: --- | O8: --- | P8: --- | Q8: --- | R8: --- | S8: --- | T8: --- | U8: 1 | V8: 0.5 | W8: 0.5 | X8: 0.5 | Y8: 1 | Z8: 0.5 | AA8: 0.5 | AB8: 0.5 | AC8: 1 | AD8: 0.5 | AE8: 1 | AF8: 1
A9: PPQA | B9: 1 | C9: 1 | D9: --- | E9: --- | F9: --- | G9: --- | H9: --- | I9: 1 | J9: 1 | K9: --- | L9: --- | M9: --- | N9: --- | O9: --- | P9: --- | Q9: --- | R9: --- | S9: --- | T9: --- | U9: 1 | V9: 1 | W9: 1 | X9: 1 | Y9: 1 | Z9: 1 | AA9: 1 | AB9: 1 | AC9: 1 | AD9: 0.5 | AE9: 1 | AF9: 1
A10: CM | B10: 1 | C10: 1 | D10: 0 | E10: --- | F10: --- | G10: --- | H10: --- | I10: 1 | J10: 0 | K10: --- | L10: --- | M10: --- | N10: --- | O10: --- | P10: 0 | Q10: 0 | R10: --- | S10: --- | T10: --- | U10: 1 | V10: 0.5 | W10: 0.5 | X10: 0.5 | Y10: 1 | Z10: 0.5 | AA10: 0.5 | AB10: 0.5 | AC10: 1 | AD10: 0.5 | AE10: 1 | AF10: 1
A11: RD | B11: 1 | C11: 1 | D11: --- | E11: --- | F11: --- | G11: --- | H11: --- | I11: 1 | J11: 1 | K11: 1 | L11: --- | M11: --- | N11: --- | O11: --- | P11: 1 | Q11: 1 | R11: 0 | S11: 0 | T11: 0 | U11: 1 | V11: 0.5 | W11: 0.5 | X11: 0.5 | Y11: 1 | Z11: 0.5 | AA11: 0.5 | AB11: 0.5 | AC11: 1 | AD11: 0.5 | AE11: 1 | AF11: 1
A12: TS | B12: 0 | C12: 0 | D12: --- | E12: --- | F12: --- | G12: --- | H12: --- | I12: 1 | J12: 1 | K12: 1 | L12: 1 | M12: --- | N12: --- | O12: --- | P12: 1 | Q12: 1 | R12: --- | S12: --- | T12: --- | U12: 1 | V12: 0.5 | W12: 0.5 | X12: 0.5 | Y12: 1 | Z12: 0.5 | AA12: 0.5 | AB12: 0.5 | AC12: 1 | AD12: 0.5 | AE12: 1 | AF12: 1
A13: PI | B13: 1 | C13: 1 | D13: 1 | E13: --- | F13: --- | G13: --- | H13: --- | I13: 0 | J13: 0 | K13: --- | L13: --- | M13: --- | N13: --- | O13: --- | P13: 0 | Q13: 0.5 | R13: 0 | S13: 1 | T13: --- | U13: 1 | V13: 0.5 | W13: 0.5 | X13: 0.5 | Y13: 1 | Z13: 0.5 | AA13: 0.5 | AB13: 0.5 | AC13: 1 | AD13: 0.5 | AE13: 1 | AF13: 1
A14: VER | B14: 1 | C14: 1 | D14: 1 | E14: --- | F14: --- | G14: --- | H14: --- | I14: 0 | J14: 0 | K14: 0 | L14: --- | M14: --- | N14: --- | O14: --- | P14: 0 | Q14: 0 | R14: --- | S14: --- | T14: --- | U14: 1 | V14: 0.5 | W14: 0.5 | X14: 0.5 | Y14: 1 | Z14: 0.5 | AA14: 0.5 | AB14: 0.5 | AC14: 1 | AD14: 0.5 | AE14: 1 | AF14: 1
A15: VAL | B15: 1 | C15: 1 | D15: 0 | E15: --- | F15: --- | G15: --- | H15: --- | I15: 0 | J15: 0 | K15: --- | L15: --- | M15: --- | N15: --- | O15: --- | P15: --- | Q15: --- | R15: --- | S15: --- | T15: --- | U15: 1 | V15: 0.5 | W15: 0.5 | X15: 0.5 | Y15: 1 | Z15: 0.5 | AA15: 0.5 | AB15: 0.5 | AC15: 1 | AD15: 0.5 | AE15: 1 | AF15: 1
A16: OPF | B16: / | C16: / | D16: / | E16: --- | F16: --- | G16: --- | H16: --- | I16: / | J16: / | K16: --- | L16: --- | M16: --- | N16: --- | O16: --- | P16: / | Q16: / | R16: / | S16: / | T16: --- | U16: / | V16: / | W16: / | X16: / | Y16: / | Z16: / | AA16: / | AB16: / | AC16: / | AD16: / | AE16: / | AF16: /
A17: OPD | B17: / | C17: / | D17: / | E17: / | F17: / | G17: / | H17: / | I17: --- | J17: --- | K17: --- | L17: --- | M17: --- | N17: --- | O17: --- | P17: --- | Q17: --- | R17: --- | S17: --- | T17: --- | U17: / | V17: / | W17: / | X17: / | Y17: / | Z17: / | AA17: / | AB17: / | AC17: / | AD17: / | AE17: / | AF17: /
A18: OT | B18: / | C18: / | D18: / | E18: / | F18: --- | G18: --- | H18: --- | I18: / | J18: / | K18: / | L18: --- | M18: --- | N18: --- | O18: --- | P18: --- | Q18: --- | R18: --- | S18: --- | T18: --- | U18: / | V18: / | W18: / | X18: / | Y18: / | Z18: / | AA18: / | AB18: / | AC18: / | AD18: / | AE18: / | AF18: /
A19: IPM | B19: 1 | C19: 1 | D19: 1 | E19: 1 | F19: 0.5 | G19: 1 | H19: 0 | I19: 1 | J19: 1 | K19: 1 | L19: --- | M19: --- | N19: --- | O19: --- | P19: --- | Q19: --- | R19: --- | S19: --- | T19: --- | U19: 1 | V19: 0.5 | W19: 0.5 | X19: 0.5 | Y19: 1 | Z19: 0.5 | AA19: 0.5 | AB19: 0.5 | AC19: 1 | AD19: 0.5 | AE19: 1 | AF19: 1
A20: RSKM | B20: 1 | C20: 1 | D20: 1 | E20: --- | F20: --- | G20: --- | H20: --- | I20: 1 | J20: 1 | K20: --- | L20: --- | M20: --- | N20: --- | O20: --- | P20: 1 | Q20: 1 | R20: --- | S20: --- | T20: --- | U20: 1 | V20: 0.5 | W20: 0.5 | X20: 0.5 | Y20: 1 | Z20: 0.5 | AA20: 0.5 | AB20: 0.5 | AC20: 1 | AD20: 0.5 | AE20: 1 | AF20: 1
A21: DAR | B21: 1 | C21: 0 | D21: 0 | E21: 0 | F21: 0 | G21: 0 | H21: --- | I21: --- | J21: --- | K21: --- | L21: --- | M21: --- | N21: --- | O21: --- | P21: --- | Q21: --- | R21: --- | S21: --- | T21: --- | U21: 1 | V21: 0.5 | W21: 0.5 | X21: 0.5 | Y21: 1 | Z21: 0.5 | AA21: 0.5 | AB21: 0.5 | AC21: 1 | AD21: 0.5 | AE21: 1 | AF21: 1
A23: SP&GP: | M23: 说明：此页为项目2预评估情况。
A24: 等级 | F24: 分值 | G24: 个数 | H24: 占比
A25: 完全满足要求 | F25: 1 | G25: =COUNTIF($B$4:$AF$21,F25) -> 142 | H25: =G25/SUM(G$25:G$27) -> 0.5089605735
A26: 部分满足要求 | F26: 0.5 | G26: =COUNTIF($B$4:$AF$21,F26) -> 98 | H26: =G26/SUM(G$25:G$27) -> 0.3512544803
A27: 不满足要求 | F27: 0 | G27: =COUNTIF($B$4:$AF$21,F27) -> 39 | H27: =G27/SUM(G$25:G$27) -> 0.1397849462
A28: 尚未开始 | F28: NY | G28: / | H28: /
A29: 非本次评估范围 | F29: / | G29: / | H29: /
A31: SP:
A32: 等级 | F32: 分值 | G32: 个数 | H32: 占比
A33: 完全满足要求 | F33: 1 | G33: =COUNTIF($B$4:$T$21,F33) -> 61 | H33: =G33/SUM(G$33:G$36) -> 0.5495495495
A34: 部分满足要求 | F34: 0.5 | G34: =COUNTIF($B$4:$T$21,F34) -> 14 | H34: =G34/SUM(G$33:G$36) -> 0.1261261261
A35: 不满足要求 | F35: 0 | G35: =COUNTIF($B$4:$T$21,F35) -> 36 | H35: =G35/SUM(G$33:G$36) -> 0.3243243243
A36: 尚未开始 | F36: NY | G36: / | H36: /
A37: 非本次评估范围 | F37: / | G37: / | H37: /

Sheet P3 (hidden)
A1: Practice Characterization
A2: Process Areas | B2: Specific Practices | U2: Generic Practices
B3: SP1.1 | C3: SP1.2 | D3: SP1.3 | E3: SP1.4 | F3: SP1.5 | G3: SP1.6 | H3: SP1.7 | I3: SP2.1 | J3: SP2.2 | K3: SP2.3 | L3: SP2.4 | M3: SP2.5 | N3: SP2.6 | O3: SP2.7 | P3: SP3.1 | Q3: SP3.2 | R3: SP3.3 | S3: SP3.4 | T3: SP3.5 | U3: GP2.1 | V3: GP2.2 | W3: GP2.3 | X3: GP2.4 | Y3: GP2.5 | Z3: GP2.6 | AA3: GP2.7 | AB3: GP2.8 | AC3: GP2.9 | AD3: GP2.10 | AE3: GP3.1 | AF3: GP3.2
A4: REQM | B4: 1 | C4: 0 | D4: 0 | E4: 0 | F4: 0 | G4: --- | H4: --- | I4: --- | J4: --- | K4: --- | L4: --- | M4: --- | N4: --- | O4: --- | P4: --- | Q4: --- | R4: --- | S4: --- | T4: --- | U4: 1 | V4: 0.5 | W4: 0.5 | X4: 0.5 | Y4: 0 | Z4: 0 | AA4: 0.5 | AB4: 0.5 | AC4: 0 | AD4: 0.5 | AE4: 0 | AF4: 0
A5: PP | B5: 0.5 | C5: 1 | D5: 0 | E5: 0.5 | F5: --- | G5: --- | H5: --- | I5: 0.5 | J5: 1 | K5: 0 | L5: 0.5 | M5: 0 | N5: 0.5 | O5: 0.5 | P5: 0 | Q5: 0 | R5: 0 | S5: --- | T5: --- | U5: 1 | V5: 1 | W5: 1 | X5: 1 | Y5: 1 | Z5: 1 | AA5: 1 | AB5: 1 | AC5: 0 | AD5: 0 | AE5: 0 | AF5: 0
A6: PMC | B6: 0.5 | C6: 1 | D6: 1 | E6: 0 | F6: 1 | G6: 0 | H6: 0 | I6: 0 | J6: 0 | K6: 0 | L6: --- | M6: --- | N6: --- | O6: --- | P6: --- | Q6: --- | R6: --- | S6: --- | T6: --- | U6: 1 | V6: 0.5 | W6: 0.5 | X6: 0.5 | Y6: 0 | Z6: 0 | AA6: 0.5 | AB6: 0.5 | AC6: 0 | AD6: 0.5 | AE6: 0 | AF6: 0
A7: SAM | B7: / | C7: / | D7: / | E7: --- | F7: --- | G7: --- | H7: --- | I7: / | J7: / | K7: / | L7: --- | M7: --- | N7: --- | O7: --- | P7: --- | Q7: --- | R7: --- | S7: --- | T7: --- | U7: / | V7: / | W7: / | X7: / | Y7: 0 | Z7: / | AA7: / | AB7: / | AC7: / | AD7: / | AE7: / | AF7: /
A8: MA | B8: 0 | C8: 0 | D8: 0 | E8: 0 | F8: --- | G8: --- | H8: --- | I8: 0 | J8: 0 | K8: 0 | L8: 0 | M8: --- | N8: --- | O8: --- | P8: --- | Q8: --- | R8: --- | S8: --- | T8: --- | U8: 1 | V8: 0.5 | W8: 0.5 | X8: 0.5 | Y8: 0 | Z8: 0 | AA8: 0.5 | AB8: 0.5 | AC8: 0 | AD8: 0.5 | AE8: 0 | AF8: 0
A9: PPQA | B9: 0 | C9: 0 | D9: --- | E9: --- | F9: --- | G9: --- | H9: --- | I9: 0 | J9: 0 | K9: --- | L9: --- | M9: --- | N9: --- | O9: --- | P9: --- | Q9: --- | R9: --- | S9: --- | T9: --- | U9: 1 | V9: 0.5 | W9: 0.5 | X9: 0.5 | Y9: 0 | Z9: 0 | AA9: 0.5 | AB9: 0.5 | AC9: 0 | AD9: 0.5 | AE9: 0 | AF9: 0
A10: CM | B10: 0 | C10: 0 | D10: 0 | E10: --- | F10: --- | G10: --- | H10: --- | I10: 0 | J10: 0 | K10: --- | L10: --- | M10: --- | N10: --- | O10: --- | P10: 0 | Q10: 0 | R10: --- | S10: --- | T10: --- | U10: 1 | V10: 0.5 | W10: 0.5 | X10: 0.5 | Y10: 0 | Z10: 0 | AA10: 0.5 | AB10: 0.5 | AC10: 0 | AD10: 0.5 | AE10: 0 | AF10: 0
A11: RD | B11: 1 | C11: 1 | D11: --- | E11: --- | F11: --- | G11: --- | H11: --- | I11: 0.5 | J11: 0 | K11: 0 | L11: --- | M11: --- | N11: --- | O11: --- | P11: 0 | Q11: 0 | R11: 0 | S11: 0 | T11: 0 | U11: 1 | V11: 0.5 | W11: 0.5 | X11: 0.5 | Y11: 0 | Z11: 0 | AA11: 0.5 | AB11: 0.5 | AC11: 0 | AD11: 0.5 | AE11: 0 | AF11: 0
A12: TS | B12: 0 | C12: 0 | D12: --- | E12: --- | F12: --- | G12: --- | H12: --- | I12: 1 | J12: 1 | K12: 1 | L12: 0 | M12: --- | N12: --- | O12: --- | P12: 1 | Q12: 1 | R12: --- | S12: --- | T12: --- | U12: 1 | V12: 0.5 | W12: 0.5 | X12: 0.5 | Y12: 0 | Z12: 0 | AA12: 0.5 | AB12: 0.5 | AC12: 0 | AD12: 0.5 | AE12: 0 | AF12: 0
A13: PI | B13: 0 | C13: 0 | D13: 0 | E13: --- | F13: --- | G13: --- | H13: --- | I13: 0 | J13: 0 | K13: --- | L13: --- | M13: --- | N13: --- | O13: --- | P13: 0 | Q13: 0 | R13: 0 | S13: 1 | T13: --- | U13: 1 | V13: 0.5 | W13: 0.5 | X13: 0.5 | Y13: 0 | Z13: 0 | AA13: 0.5 | AB13: 0.5 | AC13: 0 | AD13: 0.5 | AE13: 0 | AF13: 0
A14: VER | B14: 0 | C14: 0 | D14: 0 | E14: --- | F14: --- | G14: --- | H14: --- | I14: 0 | J14: 0 | K14: 0 | L14: --- | M14: --- | N14: --- | O14: --- | P14: 1 | Q14: 1 | R14: --- | S14: --- | T14: --- | U14: 1 | V14: 0.5 | W14: 0.5 | X14: 0.5 | Y14: 0 | Z14: 0 | AA14: 0.5 | AB14: 0.5 | AC14: 0 | AD14: 0.5 | AE14: 0 | AF14: 0
A15: VAL | B15: 0 | C15: 0 | D15: 0 | E15: --- | F15: --- | G15: --- | H15: --- | I15: 0 | J15: 0 | K15: --- | L15: --- | M15: --- | N15: --- | O15: --- | P15: --- | Q15: --- | R15: --- | S15: --- | T15: --- | U15: 1 | V15: 0.5 | W15: 0.5 | X15: 0.5 | Y15: 0 | Z15: 0 | AA15: 0.5 | AB15: 0.5 | AC15: 0 | AD15: 0.5 | AE15: 0 | AF15: 0
A16: OPF | B16: / | C16: / | D16: / | E16: --- | F16: --- | G16: --- | H16: --- | I16: / | J16: / | K16: --- | L16: --- | M16: --- | N16: --- | O16: --- | P16: / | Q16: / | R16: / | S16: / | T16: --- | U16: / | V16: / | W16: / | X16: / | Y16: / | Z16: / | AA16: / | AB16: / | AC16: / | AD16: / | AE16: / | AF16: /
A17: OPD | B17: / | C17: / | D17: / | E17: / | F17: / | G17: / | H17: / | I17: --- | J17: --- | K17: --- | L17: --- | M17: --- | N17: --- | O17: --- | P17: --- | Q17: --- | R17: --- | S17: --- | T17: --- | U17: / | V17: / | W17: / | X17: / | Y17: / | Z17: / | AA17: / | AB17: / | AC17: / | AD17: / | AE17: / | AF17: /
A18: OT | B18: / | C18: / | D18: / | E18: / | F18: --- | G18: --- | H18: --- | I18: / | J18: / | K18: / | L18: --- | M18: --- | N18: --- | O18: --- | P18: --- | Q18: --- | R18: --- | S18: --- | T18: --- | U18: / | V18: / | W18: / | X18: / | Y18: / | Z18: / | AA18: / | AB18: / | AC18: / | AD18: / | AE18: / | AF18: /
A19: IPM | B19: 0 | C19: 0 | D19: 0 | E19: 0.5 | F19: 0.5 | G19: 0.5 | H19: 0 | I19: 0 | J19: 0 | K19: 0 | L19: --- | M19: --- | N19: --- | O19: --- | P19: --- | Q19: --- | R19: --- | S19: --- | T19: --- | U19: 1 | V19: 0.5 | W19: 0.5 | X19: 0.5 | Y19: 0 | Z19: 0 | AA19: 0.5 | AB19: 0.5 | AC19: 0 | AD19: 0.5 | AE19: 0 | AF19: 0
A20: RSKM | B20: 1 | C20: 1 | D20: 0 | E20: --- | F20: --- | G20: --- | H20: --- | I20: 1 | J20: 1 | K20: --- | L20: --- | M20: --- | N20: --- | O20: --- | P20: 1 | Q20: 1 | R20: --- | S20: --- | T20: --- | U20: 1 | V20: 0.5 | W20: 0.5 | X20: 0.5 | Y20: 0 | Z20: 0 | AA20: 0.5 | AB20: 0.5 | AC20: 0 | AD20: 0.5 | AE20: 0 | AF20: 0
A21: DAR | B21: 1 | C21: 0 | D21: 0 | E21: 0 | F21: 0 | G21: 0 | H21: --- | I21: --- | J21: --- | K21: --- | L21: --- | M21: --- | N21: --- | O21: --- | P21: --- | Q21: --- | R21: --- | S21: --- | T21: --- | U21: 1 | V21: 0.5 | W21: 0.5 | X21: 0.5 | Y21: 0 | Z21: 0 | AA21: 0.5 | AB21: 0.5 | AC21: 0 | AD21: 0.5 | AE21: 0 | AF21: 0
A23: SP&GP: | M23: 说明：此页为项目3预评估情况。
A24: 等级 | F24: 分值 | G24: 个数 | H24: 占比
A25: 完全满足要求 | F25: 1 | G25: =COUNTIF($B$4:$AF$21,F25) -> 44 | H25: =G25/SUM(G$25:G$27) -> 0.1571428571
A26: 部分满足要求 | F26: 0.5 | G26: =COUNTIF($B$4:$AF$21,F26) -> 89 | H26: =G26/SUM(G$25:G$27) -> 0.3178571429
A27: 不满足要求 | F27: 0 | G27: =COUNTIF($B$4:$AF$21,F27) -> 147 | H27: =G27/SUM(G$25:G$27) -> 0.525
A28: 尚未开始 | F28: NY | G28: / | H28: /
A29: 非本次评估范围 | F29: / | G29: / | H29: /
A31: SP:
A32: 等级 | F32: 分值 | G32: 个数 | H32: 占比
A33: 完全满足要求 | F33: 1 | G33: =COUNTIF($B$4:$T$21,F33) -> 23 | H33: =G33/SUM(G$33:G$36) -> 0.2072072072
A34: 部分满足要求 | F34: 0.5 | G34: =COUNTIF($B$4:$T$21,F34) -> 11 | H34: =G34/SUM(G$33:G$36) -> 0.0990990991
A35: 不满足要求 | F35: 0 | G35: =COUNTIF($B$4:$T$21,F35) -> 77 | H35: =G35/SUM(G$33:G$36) -> 0.6936936937
A36: 尚未开始 | F36: NY | G36: / | H36: /
A37: 非本次评估范围 | F37: / | G37: / | H37: /
